{"text_format":"1","workbook":"xlsx","n_sheets":22,"sheets":["Cover Page","Contents","Facility Info","Operational Data","Operational Summary","Perf. Form 1","Energy Form 1","Permit Compliance","Improvements","Public Liasion","CO2 N2O","Residue Quality ","Water","Air (periodic)","Air (CEMS)","HCl","SO2","NOx","TOC","Particulates","CO 95% 10 min","NH3"],"not_rendered":{"charts":7,"images":2,"macros":0,"external_links":3,"defined_names":0,"comments":0,"pivot_tables":0},"unopened":[],"bounds":{"document_bytes":16777216,"sheet_cells":100000,"rows_first":2000,"rows_last":500,"rows_between":2000,"halvings":0,"cell_chars":16384,"cell_head_chars":4096},"cells_cut":0,"cells_raw":0,"read":"whole","date_system":"1900"}

{"sheet":"Cover Page","index":0,"n_rows":54,"n_cols":14,"rows_kept":54,"cut":false,"hidden":false,"merged":[[13,13,18,15],[34,1,34,8],[0,3,5,6],[7,1,23,8],[28,1,28,8],[30,1,30,8],[32,1,32,8],[49,2,49,3],[49,6,49,8],[53,2,53,3],[36,1,36,8],[40,2,40,8],[42,2,42,4],[44,2,44,4],[46,2,46,3],[46,6,46,8],[47,2,47,3]]}
[]
[null,null,null,null,null,null,null,null,null,null,null,null,null,"Version 22.3  30/11/22"]
[]
[]
[]
[]
[]
[null,"Add photo"]
[]
[]
[]
[]
[null,null,null,null,null,null,null,null,null,null,null,null,null,"Notes:"]
[null,null,null,null,null,null,null,null,null,null,null,null,null,"This template may require adjustments by individual operators to meet specific reporting requirements as defined in the site Permit(s)"]
[]
[]
[]
[]
[]
[]
[]
[]
[]
[]
[]
[]
[]
[]
[null,"Annual Performance Report 2022"]
[]
[null,"Permit EPR/YP3033BE"]
[]
[null,"LondonEnergy Ltd"]
[]
[null,"EcoPark"]
[]
[null,"LondonEnergy Ltd "]
[]
[null,"Year:",2022]
[]
[null,"Address:","Advent way "]
[]
[null,"Tel: ","020 7000 9595"]
[]
[null,"Email: ","HSQE@londonenergyltd.com"]
[]
[null,"Prepared by:","Amani Jemal",null,null,"Position:","Environemtal advisor "]
[null,null," Uzonna Ibe"]
[]
[null,"Approved by:","Elis Jenkins ",null,null,"Position:","Senior Environment Leader"]
[]
[null,"Version:",1]
[]
[null,"Issue Date:","2023-01-27"]

{"sheet":"Contents","index":1,"n_rows":45,"n_cols":11,"rows_kept":45,"cut":false,"hidden":false,"merged":[[4,10,7,14],[8,1,8,6],[3,1,3,6],[4,1,4,6],[5,1,5,6],[6,1,6,6],[7,1,7,6],[21,1,21,6],[9,1,9,6],[10,1,10,6],[11,1,11,6],[13,1,13,6],[14,1,14,6],[15,1,15,6],[16,1,16,6],[17,1,17,6],[18,1,18,6],[19,1,19,6],[20,1,20,6],[12,1,12,6],[36,1,36,6],[22,1,22,6],[23,1,23,6],[24,1,24,6],[27,1,27,6],[28,1,28,6],[29,1,29,6],[30,1,30,6],[31,1,31,6],[32,1,32,6],[35,1,35,6],[44,0,47,9],[37,1,37,6],[38,1,38,6],[39,1,39,6],[40,1,40,6],[41,1,41,6],[42,1,42,6]]}
["Annual Performance Report 2022",null,null,null,"Name of Facility as per Permit ",null,null,null,"LondonEnergy Ltd"]
[]
["Contents",null,null,null,null,null,null,null,null,null,"Notes:"]
["Section","Subject",null,null,null,null,null,"Page ",null,null,"Section references and Page nos. to be inserted"]
[null,"Facility Information",null,null,null,null,null,null,null,null,"Sections and Subjects may require adjustment by individual operators to meet specific reporting requirements as defined in the sites Permit(s)"]
[null,"Operational Data"]
[null,"Operational Summary"]
[null,"Performance Form 1"]
[null,"Energy Form 1"]
[null,"Permit Compliance"]
[null,"Improvements"]
[null,"Public Liasion"]
[null,"Carbon dioxide and nitrous oxide emissions"]
[null,"Residue Quality "]
[null,"Emissions to Water"]
[null,"Emissions to Air (periodically monitored)"]
[null,"Emissions to Air (continuously monitored)"]
[null,"Hydrogen Chloride emissions"]
[null,"Sulphur Dioxdie emsissions"]
[null,"Oxides of Notrigen emissions"]
[null,"Total Organic Carbon emissions"]
[null,"Particulate Matter emissions"]
[null,"Carbon Monoxide emissions"]
[null,"Ammonia emissions"]
[]
[]
["Version Control"]
["Section","Information",null,null,null,null,null,"Date"]
[]
[]
[]
[]
[]
[]
["Distribution"]
["Copy","Name, Role",null,null,null,null,null,"No."]
[]
[]
[]
[]
[]
[]
[]
[]
["This report is required under the Industrial Emissions Directive’s Article 55(2) requirements on reporting and public information on waste incineration plants and co-incineration plants, which require the operator to produce an annual report on the functioning and monitoring of the plant and make it available to the public. "]

{"sheet":"Facility Info","index":2,"n_rows":22,"n_cols":11,"rows_kept":22,"cut":false,"hidden":false,"merged":[[4,0,17,8],[21,0,53,8],[4,10,13,13],[21,10,30,13]]}
["Annual Performance Report 2022",null,null,null,"LondonEnergy Ltd"]
[]
["Plant Description and Design",null,null,null,null,null,null,null,null,null,"Notes:"]
[]
["The EcoPark Energy Centre consists of 5 boilers, 5 turbines and 4 flue gas treatment streams. The boilers are a rolling grate technology and the plant is equipped with Atmospheric Pollution Control (APC) measures that ensure that the plant conforms to the requirements set out in the Waste Incineration Directive 2000/76/EC (WID) in all respects. In practice, the pollutant abatement technologies applied will limit the emission concentrations to levels below the limit values.                                                                                                      \n\nThe heat from the process is utilised to generate potentially 40 MW of electricity, of which in excess of up to 80% is exported to the local electricity distribution network, thus saving valuable fossil fuel resources.       ",null,null,null,null,null,null,null,null,null,"Include summary of plant design, design capacity, no. of combustion lines, electrical and heat capacity and any other general information that descibes the facility, its location and purpose "]
[]
[]
[]
[]
[]
[]
[]
[]
[]
[]
[]
[]
[]
[]
["Summary of Operational Processes and Procedures"]
[]
["The burning process significantly reduces the volume of waste. Ferrous and non-ferrous metals are recycled as is Incinerator Bottom Ash (IBA). The IBA is recycled utilising established methodology for use as a secondary aggregate e.g. for asphalt. The effect of reducing the volume by recovery of this material means that landfill void space is conserved. Equally as important, the use of secondary aggregates reduces the demand upon the quarrying of primary aggregates.\n\nThe EcoPark Energy Centre plant operates on a continuous 24-hour basis throughout the year, apart from partial planned and unplanned shutdowns. Incidents that cause unplanned shutdowns are dealt with in accordance with the appropriate planned actions. To offer maximum flexibility to the Local Authorities waste collection services, and to minimise local impact, particularly during peak traffic times, the facility is permitted to accept waste on a 24-hour basis.",null,null,null,null,null,null,null,null,null,"Include summary of key processes and procedures such as (but not limited to); waste reception, control rooms, grate, bed and bolier, energy & heat  generation, cooling systems, residue management, emission controls, health and safety systems, maintenance"]

{"sheet":"Operational Data","index":3,"n_rows":68,"n_cols":11,"rows_kept":68,"cut":false,"hidden":false,"merged":[[52,0,56,0],[5,10,6,10],[7,10,18,10],[33,1,38,1],[3,1,3,2],[7,1,19,1],[23,1,26,1],[28,1,29,1]]}
["Annual Performance Report 2022",null,null,null,"LondonEnergy Ltd"]
[]
["Operational Data",null,null,null,null,null,null,null,{"$f":"40*8760","v":350400},null,"Notes:"]
["Plant Size"," Max 750000 ",null,"tonnes pa",null,"MWth",5400000,"MWe",null,null,"* - RDF to include SRF "]
["No. of combustion lines",5,null,"No. of Turbines:",null,5,null,null,null,null,"** - CHP plants only"]
[null,null,null,null,null,null,null,null,null,null,"2020 updates include;  heat in MWh, water in Litres, NCV in MJ/kg"]
["Waste types received","Unit","Q1","Q2","Q3","Q4","Year Total","%"]
["Household / Local Authority","tonnes",116662,103916,122671,132176,475425,0.97299999999999998,null,null,"Availabiity Definition: 'the availability of a line is to be calculated by the number of hours the line reported Continuously Monitored emission levels to the Regulator through the calendar year divided by the total number of hours in that year. \nThe overall plant availability is calculated as the Mean of all lines in the plant. For clarity this includes periods of Other Than Normal Operating Conditions (OTNOC) and abnormal operation.'  \n\nRationale: The primary function of an Energy from Waste facility is the disposal of waste. It follows therefore that the availability of a plant is determined by the period of time a facility spends undertaking this activity."]
["Commercial & Industrial ",null,null,null,null,null," -   ","-"]
["Hazardous ",null,null,null,null,null," -   ","-"]
["Clinical",null,133,131,132,126,521,1E-3]
["Waste wood (biomass) ",null,null,null,null,null," -   ","-"]
["Refuse Derived Fuel * - H'hold/LA",null,4480,553,2661,5053,12746,2.5999999999999999E-2]
["Refuse Derived Fuel *  - C&I",null,null,null,null,null," -   ","-"]
["Other [Please specify]",null,9,10,10,9,38,0]
["Other [Please specify]",null,0,0," -   "," -   ",1,0]
["Other [Please specify]",null,null,null,null,null," -   ","-"]
["Total waste received",null,121283,104609,125474,137364,488730,1]
["Rejected Waste ",null,null,null,null,null," -   ","-"]
["Unprocessed waste transferred out",null,null,null,null,null," -   ","-"]
["Total waste combusted",null,121283,104609,125474,137364,488730,"-"]
[]
["Energy Useage / Export","Unit","Q1","Q2","Q3","Q4","Year Total","KWh/te"]
["Power Generated","MWh",63827,55189,60534,67931,{"$f":"SUM(C24:F24)","v":247481},{"$f":"IF(G24>0,G24*1000/$G$21,\"-\")","v":506.37570846888877}]
["Power Exported",null,53657,46253,53426,57052,{"$f":"SUM(C25:F25)","v":210388},{"$f":"IF(G25>0,G25*1000/$G$21,\"-\")","v":430.47899658298036}]
["Power Used on site",null,10170,8936,10579,10879,40564,82.998792789474763]
["Power Imported",null,240,186,8," -   ",434,0.88801587788758618]
["Parasitic Load","%",{"$f":"C26/C24","v":0.15933695771382017},{"$f":"D26/D24","v":0.16191632390512603},0.17476129117520733,0.1601477970293386]
["Thermal Energy Produced **","MWh",null,null,null,null,0,{"$f":"IF(G29>0,G29*1000/$G$21,\"-\")","v":"-"}]
["Thermal Energy Exported **",null,null,null,null,null,0,{"$f":"IF(G30>0,G30*1000/$G$21,\"-\")","v":"-"}]
["R1 value (if applicable)"]
[]
["Waste Disposal & Recovery","Unit","Q1","Q2","Q3","Q4","Year Total","% inputs"]
["APC Residues - produced","tonnes",3552,2942,3542,3727,13763,{"$f":"IF(G34>0,G34/$G$21,\"-\")","v":2.8160743150614859E-2}]
["IBA - produced",null,18536,16634,22626,22816,80612,{"$f":"IF(G35>0,G35/$G$21,\"-\")","v":0.16494178789924907}]
["Metals recycling",null,2338,1893,2398,2552,9182,1.8787469563971926E-2]
["Other",null,0,0,0,0,0,"-"]
["Other",null,0,0,0,0,0,"-"]
["Other",null,0,0,0,0,0,"-"]
[]
["Raw Material Usage","Unit","Q1","Q2","Q3","Q4","Year Total","kg or Ltr /te"]
["Mains Water","ltrs",37013000,39619000,42612000,38364000,157608000,322.48]
["Other Water","ltrs",207661000,203914000,258861000,119567000,790003000,1616.44]
["Ammonia","kgs",null,null,null,null," -   "," - "]
["Urea","kgs",141080,96560,94880,156930,489450,1]
["Activated Carbon","kgs",73640,67040,47540,99700,287920,0.59]
["Lime / hydrated lime","kgs",919840,1077440,1187820,1074460,4259560,8.7200000000000006]
["Fuel oil","ltrs",4800,2300,null,3800,10900,0.02]
["Gas","cf",4522396,13537524,7579940,28052206,{"$f":"SUM(C49:F49)","v":53692066}]
["Other",null,0,0,0,0,0]
[]
["Summary ","Line/Unit","Q1","Q2","Q3","Q4","Year Total",null,null,"Hrs in year "]
["Availability of waste combustion by line, hrs",1,1731,1557,2168,2044,{"$f":"SUM(C53:F53)","v":7500},{"$f":"G53/$J$53","v":0.85616438356164382},null,8760]
[null,2,2094,1637,1762,2172,{"$f":"SUM(C54:F54)","v":7665},{"$f":"G54/$J$53","v":0.875}]
[null,3,2160,1982,1750,2181,8073,0.92157534246575346]
[null,4,1559,1694,2202,2029,7484,0.85433789954337902]
[null,5,1674,1555,1954,2187,7370,0.841324200913242]
["Overall Availability, mean avg. of all lines, hrs",null,1844,1685,1967,2123,7619,0.86974885844748862]
["Hours of turbine operations, hrs",1,2172,1528,1486,1867,7053,0.80513698630136987]
["Hours of turbine operations, hrs",2,2172,1774,1988,2126,8060,0.92009132420091322]
["Hours of turbine operations, hrs",3,2172,1860,2012,2009,8053,0.91929223744292232]
["Hours of turbine operations, hrs",4,727,1393,2154,2065,6339,{"$f":"G62/$J$53","v":0.72363013698630141}]
["Hours of turbine operations, hrs",5,0,0,0,200,{"$f":"SUM(C63:F63)","v":200}]
["Hours of heat / steam export",null,9234,8558,9842,10638,{"$f":"SUM(C64:F64)","v":38272},"n/a"]
["Net Calorific Value of waste","MJ/kg",{"$f":"[1]Sheet1!$G$7/1000","v":11.782999999999999},{"$f":"C65","v":11.782999999999999},{"$f":"D65","v":11.782999999999999},{"$f":"E65","v":11.782999999999999},{"$f":"AVERAGE(C65:F65)","v":11.782999999999999},"-"]
["Abnormal Events","qty.",null,2,null,null,{"$f":"SUM(C66:F66)","v":2}]
["Abnormal operation","hours",1,null,null,null,1,{"$f":"C67/J53","v":1.1415525114155251E-4}]
["Permit Breaches","qty.",5,12,10,4,31]

{"sheet":"Operational Summary","index":4,"n_rows":31,"n_cols":11,"rows_kept":31,"cut":false,"hidden":false,"merged":[[4,0,26,8],[30,0,51,8],[4,10,13,13],[30,10,39,13]]}
["Annual Performance Report 2022",null,null,null,"LondonEnergy Ltd"]
[]
["Summary of Plant Operations and Maintenance during the reporting year",null,null,null,null,null,null,null,null,null,"Notes:"]
[]
["LEL carry out annual Boiler, Turbine and Flue Gas Treatment (FGT) outages to comply with Statutory inspections and testing.\nEach Boiler and FGT's are taken off line, cleaned, inspected visually and by means of Non-Destructive Testing (NDT).\nBoiler tubes are replaced with new where identified to be below standards and all wear parts replaced where required to ensure reliability and reduce downtime.\nTurbines are taken off for survey every four years (one each year) to replace and repair the Turbine blades and bearings to achieve the best efficiency possible.\nDuring the Turbine surveys all mechanical and electrical components i.e. pumps, motors, valves etc are inspected, tested and repaired/replaced as required.\nNew 11kV switchgear was installed, commissioned and handed over to Operations Team.\nInstallation and comissioning of new turbine due for full handover by end of Q2 2023.\nTA4 run hours low due to ongoing outage works.",null,null,null,null,null,null,null,null,null,"Include summary of key operational and/or mainteanance activity undertaken in the year, such as any major component upgrades and/or replacements "]
[]
[]
[]
[]
[]
[]
[]
[]
[]
[]
[]
[]
[]
[]
[]
[]
[]
[]
[]
[]
[]
[]
[]
["Summary of Residue Handling for the reporting year"]
[]
["All IBA stored on site for the 48 hour cooling period and then sent to Fortis for processing.",null,null,null,null,null,null,null,null,null,"Include in here a summary of residue handling regimes and destinations "]

{"sheet":"Perf. Form 1","index":5,"n_rows":54,"n_cols":10,"rows_kept":54,"cut":false,"hidden":false,"merged":[[9,0,9,9],[10,0,10,1],[10,2,10,3],[10,4,10,5],[10,6,10,7],[10,8,10,9],[2,6,2,8],[5,3,5,4],[5,6,5,7],[8,0,8,1],[8,2,8,3],[8,4,8,5],[8,6,8,7],[8,8,8,9],[4,1,4,4],[11,0,11,1],[11,2,11,3],[11,4,11,5],[11,6,11,7],[11,8,11,9],[12,0,12,1],[12,2,12,3],[12,4,12,5],[12,6,12,7],[12,8,12,9],[15,0,15,1],[15,2,15,3],[15,4,15,5],[15,6,15,7],[15,8,15,9],[16,0,16,9],[13,0,13,1],[13,2,13,3],[13,4,13,5],[13,6,13,7],[13,8,13,9],[14,0,14,3],[14,4,14,5],[14,6,14,7],[14,8,14,9],[17,0,17,1],[17,2,17,3],[17,4,17,5],[17,6,17,7],[17,8,17,9],[18,0,18,1],[18,4,18,5],[18,6,18,7],[18,8,18,9],[19,0,19,1],[19,2,19,3],[19,4,19,5],[19,6,19,7],[19,8,19,9],[20,0,20,1],[20,2,20,3],[20,4,20,5],[20,6,20,7],[20,8,20,9],[21,0,21,1],[21,2,21,3],[21,4,21,5],[21,6,21,7],[21,8,21,9],[22,0,22,3],[22,4,22,5],[22,6,22,7],[22,8,22,9],[31,0,31,3],[31,7,31,8],[32,0,32,3],[32,4,32,5],[32,7,32,8],[33,0,33,3],[33,4,33,5],[33,7,33,8],[23,0,23,3],[23,4,23,5],[23,6,23,7],[23,8,23,9],[25,0,25,9],[26,0,28,9],[36,0,36,3],[36,4,36,5],[36,7,36,8],[37,0,37,3],[37,4,37,5],[37,7,37,8],[34,0,34,3],[34,4,34,5],[34,7,34,8],[35,0,35,3],[35,4,35,5],[35,7,35,8],[47,0,47,1],[49,0,49,9],[50,0,51,9],[38,0,38,9],[39,0,40,9],[43,0,43,1],[43,2,43,9],[45,0,45,1],[46,0,46,1]]}
[2022," Annual Reporting Performance Form 1"]
[]
["Permit EPR/YP3033BE",null,null,null,null,"Operator: ","LEL"]
[null,null,null,null,null,"Form:","Performance 1"]
["Facility:","LondonEnergy Ltd"]
["Reporting  Period from: ",null,null,"2022-01-01",null,"to:","2022-12-31"]
[]
["20xx","Annual Reporting of Waste Disposal and Recovery"]
["Waste Description",null,"Disposal Route(s)",null,"Disposal Tonnes",null,"Recovery Tonnes",null,"% / tonne of waste incinerated"]
["1) Hazardous Wastes"]
["APC Residues",null,"Castle Environmental ",null,13763,null,null,null,{"$f":"E11/'Operational Data'!G21","v":2.8160743150614859E-2}]
["IBA",null,null,null,null,null,null,null,"-"]
[null,null,null,null,null,null,null,null,"-"]
[null,null,null,null,null,null,null,null,"-"]
["Total Hazardous Waste",null,null,null,{"$f":"E11","v":13763},null,0,null,{"$f":"E15/'Operational Data'!G21","v":2.8160743150614859E-2}]
[]
["2) Non-Hazardous Wastes"]
["IBA",null,"Fortis IBA Ltd",null,null,null,{"$f":"[2]WR1!$D$15","v":84046},null,{"$f":"G18/'Operational Data'!G21","v":0.17196816238004625}]
["Ferrous Metal",null,"Metal Recycler",null,null,null,{"$f":"[2]WR1!$D$16","v":9091},null,{"$f":"G19/'Operational Data'!G21","v":1.8601272686350336E-2}]
["Process Water",null,"-",null,"-",null,"-",null,"-"]
[null,null,null,null,null,null,null,null,"-"]
[null,null,null,null,null,null,null,null,"-"]
["Total Non-Hazardous Waste",null,null,null,0,null,{"$f":"G18+G19","v":93137},null,{"$f":"G23/'Operational Data'!G21","v":0.19056943506639659}]
["TOTAL WASTE",null,null,null,{"$f":"E15","v":13763},null,{"$f":"G23","v":93137},null,{"$f":"(E24+G24)/'Operational Data'!G21","v":0.21873017821701143}]
[]
["Operator’s comments :"]
["Waste disposal and recovery data taken from our quarterly waste return (weighbridge) and might not correlate with operational data due to storage time before disposal or transfer "]
[]
[]
[]
["20xx","Annual Reporting of Water and Other Raw Material Usage"]
["Raw Material",null,null,null,"Usage",null,"Unit","Specific Useage",null,"Unit"]
["Mains Water",null,null,null,{"$f":"'Operational Data'!G42","v":157608000},null,"m3",{"$f":"IF(E33>0,E33/'Operational Data'!$G$21,\"-\")","v":322.48480756245777},null,"m3/te"]
["Total Water",null,null,null,{"$f":"'Operational Data'!G43","v":790003000},null,"m3",{"$f":"IF(E34>0,E34/'Operational Data'!$G$21,\"-\")","v":1616.4405704581261},null,"m3/te"]
["Urea / Ammonia",null,null,null,{"$f":"'Operational Data'!G45","v":489450},null,"kg",{"$f":"IF(E35>0,E35/'Operational Data'!$G$21,\"-\")","v":1.0014732060646983},null,"kg/te"]
["Activated Carbon",null,null,null,{"$f":"'Operational Data'!G46","v":287920},null,"kg",{"$f":"IF(E36>0,E36/'Operational Data'!$G$21,\"-\")","v":0.58911873631657563},null,"kg/te"]
["Lime / hydrated lime / Sodium Bicarb.",null,null,null,{"$f":"'Operational Data'!G47","v":4259560},null,"kg",{"$f":"IF(E37>0,E37/'Operational Data'!$G$21,\"-\")","v":8.7155689235365124},null,"kg/te"]
[]
["Operator’s comments :"]
[]
[]
[]
["20xx","Annual Reporting of other performance indicators "]
["Parameter",null,"Results by Line"]
[null,null,"A1","A2","A3","A4","A5",null,"Turbine 1","Turbine 2"]
["Operating hours for the year, hours",null,8760,8760]
["Number of periods of abnormal operation, qty."]
["Cumulative hours of abnormal operation for this year, hours"]
[]
["Operator’s comments :"]
[]
[]
[]
["Signed: ","A. Jemal ",null,null,null,null,"Date:","2023-01-27"]

{"sheet":"Energy Form 1","index":6,"n_rows":29,"n_cols":8,"rows_kept":29,"cut":false,"hidden":false,"merged":[[2,6,2,8],[4,1,4,4],[6,3,6,4],[6,6,6,7],[8,0,8,2],[8,3,8,4],[8,6,8,8],[9,0,9,2],[9,3,9,4],[9,6,9,8],[10,0,10,2],[10,3,10,4],[10,6,10,8],[11,0,11,2],[11,3,11,4],[11,6,11,8],[12,0,12,2],[12,3,12,4],[12,6,12,8],[13,0,13,2],[13,3,13,4],[13,6,13,8],[14,0,14,2],[14,3,14,4],[14,6,14,8],[15,0,15,2],[15,3,15,4],[15,6,15,8],[17,0,17,8],[18,0,24,8]]}
[2022," Annual Reporting of Energy Usage/Export"]
[]
["Permit EPR/YP3033BE",null,null,null,null,"Operator: ","LEL"]
[]
["Facility:","LondonEnergy Ltd",null,null,null,"Form:","Energy 1"]
[]
["Reporting  Period from: ",null,null,"2022-01-01",null,"to:","2022-12-31"]
[]
["Energy Source",null,null,"Energy Usage",null,"Unit","Specific Useage (KWh/tonne incinerated"]
["Electricity Produced",null,null,{"$f":"'Operational Data'!G24","v":247481},null,"MWh",{"$f":"'Operational Data'!H24","v":506.37570846888877}]
["Electricity Imported   ",null,null,{"$f":"'Operational Data'!G27","v":434},null,"MWh",{"$f":"'Operational Data'!H27","v":0.88801587788758618}]
["Electricity Exported",null,null,{"$f":"'Operational Data'!G25","v":210388},null,"MWh",{"$f":"'Operational Data'!H25","v":430.47899658298036}]
["Gas Oil",null,null,null,null,"tonnes"]
["Steam/hot water exported",null,null,{"$f":"'Operational Data'!G30","v":0},null,"GWh",{"$f":"'Operational Data'!H30","v":"-"}]
[]
[]
[]
["Operator’s comments :"]
[]
[]
[]
[]
[]
[]
[]
[]
[]
[]
["Signed: ","A. Jemal ",null,null,null,null,"Date:","2023-01-27"]

{"sheet":"Permit Compliance","index":7,"n_rows":74,"n_cols":12,"rows_kept":74,"cut":false,"hidden":false,"merged":[[8,11,17,14],[73,4,73,8],[9,0,9,1],[9,2,9,4],[9,5,9,8],[10,0,10,1],[10,2,10,4],[10,5,10,8],[11,0,11,1],[11,2,11,4],[11,5,11,8],[12,0,12,1],[12,2,12,4],[12,5,12,8],[13,0,13,1],[13,2,13,4],[13,5,13,8],[14,0,14,1],[14,2,14,4],[14,5,14,8],[15,0,15,1],[72,1,72,3],[72,4,72,6],[72,7,72,9],[7,0,7,1],[7,2,7,8],[8,0,8,1],[8,2,8,4],[8,5,8,8],[19,4,19,6],[19,7,19,9],[20,1,20,3],[20,4,20,6],[20,7,20,9],[16,2,16,4],[16,5,16,8],[15,2,15,4],[15,5,15,8],[16,0,16,1],[69,1,69,3],[69,4,69,6],[69,7,69,9],[70,1,70,3],[70,4,70,6],[70,7,70,9],[66,0,66,10],[18,0,18,10],[71,1,71,3],[71,4,71,6],[71,7,71,9],[67,1,67,3],[67,4,67,6],[67,7,67,9],[68,1,68,3],[68,4,68,6],[68,7,68,9],[63,1,63,3],[63,4,63,6],[63,7,63,9],[64,1,64,3],[64,4,64,6],[64,7,64,9],[61,1,61,3],[61,4,61,6],[61,7,61,9],[62,1,62,3],[62,4,62,6],[62,7,62,9],[19,1,19,3],[60,1,60,3],[60,4,60,6],[60,7,60,9],[33,1,33,3],[47,1,47,3],[47,4,47,6],[47,7,47,9],[48,1,48,3],[48,4,48,6],[48,7,48,9],[57,1,57,3],[57,4,57,6],[57,7,57,9],[58,1,58,3],[58,4,58,6],[58,7,58,9],[59,1,59,3],[59,4,59,6],[59,7,59,9],[49,1,49,3],[49,4,49,6],[49,7,49,9],[38,1,38,3],[38,4,38,6],[38,7,38,9],[39,1,39,3],[39,4,39,6],[39,7,39,9],[40,1,40,3],[40,4,40,6],[40,7,40,9],[41,1,41,3],[42,1,42,3],[42,4,42,6],[42,7,42,9],[41,4,41,6],[41,7,41,9],[46,1,46,3],[46,4,46,6],[46,7,46,9],[52,1,52,3],[52,4,52,6],[21,1,21,3],[21,4,21,6],[21,7,21,9],[22,1,22,3],[22,4,22,6],[22,7,22,9],[37,1,37,3],[37,4,37,6],[37,7,37,9],[35,1,35,3],[35,4,35,6],[35,7,35,9],[36,1,36,3],[36,4,36,6],[36,7,36,9],[33,4,33,6],[33,7,33,9],[34,1,34,3],[34,4,34,6],[34,7,34,9],[25,1,25,3],[25,4,25,6],[25,7,25,9],[26,1,26,3],[26,4,26,6],[26,7,26,9],[23,1,23,3],[23,4,23,6],[23,7,23,9],[24,1,24,3],[24,4,24,6],[24,7,24,9],[29,1,29,3],[29,4,29,6],[29,7,29,9],[30,1,30,3],[30,4,30,6],[30,7,30,9],[27,1,27,3],[27,4,27,6],[27,7,27,9],[28,1,28,3],[28,4,28,6],[28,7,28,9],[31,1,31,3],[31,4,31,6],[31,7,31,9],[32,1,32,3],[32,4,32,6],[32,7,32,9],[45,1,45,3],[45,4,45,6],[45,7,45,9],[43,1,43,3],[43,4,43,6],[43,7,43,9],[44,1,44,3],[44,4,44,6],[44,7,44,9],[52,7,52,9],[53,1,53,3],[53,4,53,6],[53,7,53,9],[50,4,50,6],[50,7,50,9],[51,1,51,3],[51,4,51,6],[51,7,51,9],[50,1,50,3],[56,1,56,3],[56,4,56,6],[56,7,56,9],[54,1,54,3],[54,4,54,6],[54,7,54,9],[55,1,55,3],[55,4,55,6],[55,7,55,9]]}
["Annual Performance Report 2022",null,null,null,"LondonEnergy Ltd"]
[]
["Summary of Permit Compliance"]
[]
["Compliance with permit limits for continuously monitored pollutants"]
[]
["The plant met its emission limits as shown in the table below:"]
["Substance",null,"Percentage time compliant during operation",null,null,null,null,null,null,null,null,"Notes:"]
[null,null,"Half-hourly limit",null,null,"Daily limit",null,null,null,null,null,"Report to 2 decimal places, i.e. xx.xx%\n\nPlease provide a brief summary of each notification or non-compliance in the table (rather than just referring to notifications that were sent to the Regulator).  \n\n"]
["Particulates",null,0.99970000000000003,null,null,1]
["Oxides of nitrogen",null,1,null,null,1]
["Sulphur dioxide",null,1,null,null,1]
["Carbon monoxide",null,"99.83 % or \n99.92% 95% of 10-min averages",null,null,0.98899999999999999]
["Total organic carbon",null,0.99790000000000001,null,null,0.99719999999999998]
["Hydrogen chloride",null,1,null,null,1]
["Hydrogen fluoride",null,"NA",null,null,"NA"]
[null,null,{"$f":"AVERAGE(C10:E16)","v":0.99952000000000008},null,null,{"$f":"AVERAGE(F10:I16)","v":0.99770000000000003}]
[]
["Summary of any notifications or non-compliances under the permit"]
["Date","Summary of notification or non-compliance [including Line/Reference]",null,null,"Reason ",null,null,"Measures taken to prevent reoccurrence"]
["2022-02-09","A1 South Particulate matter ELV Exceedence 2 X  1/2 hourly",null,null,"Cause - Preheat dampers remaining open with the main stream in operation following a period of preheating before start up. \nAction - PLC Logic to be investigated and/or modified to prevent this condition from re-occurring. ",null,null,"A review of the dampener logic control was carried out by operations in conjunction with the relevant contractor to ensure the control was suitable for the operation. Following review, the logic was deemed suitable for the abatement system. Modifications will be made to the startup procedure to specifically highlight the required state of the dampener position during this specific task. "]
["2022-02-10","A2 North TOC ELV Exceedence 1 x 1/2 hourly ",null,null,"due to large explosion in Boiler 4 from a gas cylinder causing a spike in the reading which was unrecoverable.",null,null,"Improved management of waste inspections to reduce the risk of pressurised gas bottles and other non-conforming waste being unloaded into the bunkers and fed into the boiler feed hoppers. Bunker management system in place to allow mixing of waste."]
["2022-02-28","A1 South Particulate matter ELV Exceedence  1 x 1/2 hourly ",null,null,"Ruptured filter bags were the cause of this exceedance.",null,null,"Damaged filters were replaced before being returned to service. The condition of filter bags for all lines will be assessed during Bag Filters outages"]
["2022-03-29","A1 South TOC ELV Exceedence 1 x 1/2 hourly ",null,null,"A sudden over pressurisation event occurred on Boiler 2 at 18:09hrs this was due to a suspected Gas Bottle explosion. Adjustments made to try and control emissions and to stabilise boiler from increase steam flow and over pressurisation.",null,null,"The investigation has confirmed by comparing the data on the duty and standby analysers that the elevated readings were due to a linearity test being carried out where the control had not switched analysers at the time of the testing so these readings are no longer considered to be exceedances. This Notification is therefore withdrawn"]
["2022-03-30","A1 South TOC ELV Exceedence 1 x 1/2 hourly ",null,null,"A sudden over pressurisation event occurred on Boiler 2 at 18:09hrs this was due to a suspected Gas Bottle explosion. Adjustments made to try and control emissions and to stabilise boiler from increase steam flow and over pressurisation.",null,null,"The investigation has confirmed by comparing the data on the duty and standby analysers that the elevated readings were due to a linearity test being carried out where the control had not switched analysers at the time of the testing so these readings are no longer considered to be exceedances. This Notification is therefore withdrawn"]
["2022-04-24","A2 North TOC ELV Exceedence 1 x 1/2 hourly ",null,null,"A sudden explosion of gas bottles was a sole cause of this exceedance.",null,null,"Improved management of waste inspections to reduce the risk of pressurised gas bottles and other non-conforming waste being unloaded into the bunkers and fed into the boiler feed hoppers. Bunker management system in place to allow mixing of waste."]
["2022-05-01","A1 South TOC ELV Exceedence 1 x 1/2 hourly ",null,null,"A sudden explosion of gas bottles was a sole cause of this exceedance",null,null,"Improved management of waste inspections to reduce the risk of pressurised gas bottles and other non-conforming waste being unloaded into the bunkers and fed into the boiler feed hoppers. Bunker management system in place to allow mixing of waste."]
["2022-05-01","A2 North TOC ELV Exceedence 1 x 1/2 hourly ",null,null,"A sudden explosion of gas bottles was a sole cause of this exceedance",null,null,"Improved management of waste inspections to reduce the risk of pressurised gas bottles and other non-conforming waste being unloaded into the bunkers and fed into the boiler feed hoppers. Bunker management system in place to allow mixing of waste."]
["2022-05-02","A1 South CO ELV Exceedence- Daily ",null,null,"28th April (loss of power to the site\nNew switchgear ",null,null,"New 11kV Switchgear was successfully commissioned and the fault on the system, which caused power distortion resolved. Bunker management system in place to allow mixing of waste."]
["2022-05-03","A1 South CO ELV Exceedence Daily ",null,null,"Due to the events on 29th April (loss of power to the site – 11kV Switchgear replacement), waste was held in the bunkers for a longer period than during normal operation, this caused issues with stabilising the combustion of waste due to the change of quality and composition of waste.",null,null,"As for the resulting change in waste quality (due to the waste resident time in the bunker) in the event of a reoccurrence (boiler shutdown) the degraded bunker waste will be mixed in low quantities with better quality/less degraded waste before feeding the boilers. This would likely reduce the CO emissions by adding oxygen content for a complete combustion. And to also ensure any moisture is drained out of the waste there are plans to use a high\u0002pressure drainage cleaning from the bottom of the boiler. This action will be discussed in the next Environmental QAQC meeting. The Drainage system was cleaned during the outage this year"]
["2022-05-03","A1 South TOC ELV Exceedence 2 x 1/2 hourly ",null,null,"A sudden explosion of gas bottles was a cause of TOC exceedance.",null,null,"-A Review of the current waste inspections regime will be conducted to scope any feasible improvements that can be implemented to identify gas canisters prior to unloading into the bunker."]
["2022-05-07","A2 North TOC ELV Exceedence  1 x 1/2 hourly ",null,null,"A sudden explosion of gas bottles was a cause of TOC exceedance.",null,null,"A Review of the current waste inspections regime will be conducted to scope any feasible improvements that can be implemented to identify gas canisters prior to unloading into the bunker'. Bunker management system in place to allow mixing of waste."]
["2022-05-12","A2 North CO ELV Exceedence Daily",null,null,"29th April (loss of power to the site\nNew switchgear ",null,null,"As for the resulting change in waste quality (due to the waste resident time in the bunker) in the event of a reoccurrence (boiler shutdown) the degraded bunker waste will be mixed in low quantities with better quality/less degraded waste before feeding t"]
["2022-06-02","A2 North TOC ELV Exceedence  1 x 1/2 hourly ",null,null,"Cause - Gas Bottles in waste feed\n",null,null,"A Review of the current waste inspections regime will be conducted to scope any feasible improvements that can be implemented to identify gas canisters prior to unloading into the bunker'. Bunker management system in place to allow mixing of waste."]
["2022-06-10","A2 North TOC ELV Exceedence  1 x 1/2 hourly ",null,null,"Cause - Gas Bottles in waste feed\n",null,null,"A Review of the current waste inspections regime will be conducted to scope any feasible improvements that can be implemented to identify gas canisters prior to unloading into the bunker'. Bunker management system in place to allow mixing of waste."]
["2022-06-18","A2 North TOC ELV Exceedence  1 x 1/2 hourly ",null,null,"Cause - Gas Bottles in waste feed\n",null,null,"A Review of the current waste inspections regime will be conducted to scope any feasible improvements that can be implemented to identify gas canisters prior to unloading into the bunker'. Bunker management system in place to allow mixing of waste."]
["2022-06-29","A2 North TOC ELV Exceedence  1 x 1/2 hourly ",null,null,"Cause - Gas Bottles in waste feed\n",null,null,"A Review of the current waste inspections regime will be conducted to scope any feasible improvements that can be implemented to identify gas canisters prior to unloading into the bunker'. Bunker management system in place to allow mixing of waste."]
["2022-07-13","A1 South TOC ELV Exceedence 1 x 1/2 hourly ",null,null,"Cause - Gas Bottles in waste feed\n",null,null,"A Review of the current waste inspections regime will be conducted to scope any feasible improvements that can be implemented to identify gas canisters prior to unloading into the bunker'. Bunker management system in place to allow mixing of waste."]
["2022-07-16","A2 North TOC ELV Exceedence  1 x 1/2 hourly ",null,null,"Cause - Gas Bottles in waste feed\n",null,null,"A Review of the current waste inspections regime will be conducted to scope any feasible improvements that can be implemented to identify gas canisters prior to unloading into the bunker'. Bunker management system in place to allow mixing of waste."]
["2022-07-29","A1 South TOC ELV Exceedence 1 x 1/2 hourly ",null,null,"Cause - Gas Bottles in waste feed\n",null,null,"A Review of the current waste inspections regime will be conducted to scope any feasible improvements that can be implemented to identify gas canisters prior to unloading into the bunker'. Bunker management system in place to allow mixing of waste."]
["2022-08-08","A1 South TOC ELV Exceedence 1 x 1/2 hourly ",null,null,"The tube leak is mainly caused by corrosion, heat damage or steel expansion from the exposed heat",null,null,"Specific inspections of the tubes are conducted during boiler outages due to the intrusive requirements of the work and will continue to be planned and conducted through coordination of the engineering department.  "]
["2022-08-09","A1 South CO & TOC ELV Exceedence",null,null,"The tube leak is mainly caused by corrosion, heat damage or steel expansion from the exposed heat",null,null,"Specific inspections of the tubes are conducted during boiler outages due to the intrusive requirements of the work and will continue to be planned and conducted through coordination of the engineering department.  "]
["2022-08-24","A1 South CO & TOC ELV Exceedence",null,null,"11 x 10 minute CO, 1 x daily CO, 2 x 30 minute TOC exceedances resulting from Boiler 1 seized roller grate 1 and fault with one of the gas burners. Waste feed was ceased, a start-up burner was put in \nservice and other adjustments were made to try to control emissions and stabilise the boiler.",null,null,"Roller grate and gas burner servicing and maintenance. Further control on temperatures and damper will be put in place."]
["2022-08-11","A2 North TOC ELV Exceedence",null,null,"Cause - Gas Bottles in waste feed\n",null,null,"A Review of the current waste inspections regime will be conducted to scope any feasible improvements that can be implemented to identify gas canisters prior to unloading into the bunker'. Bunker management system in place to allow mixing of waste."]
["2022-09-02","A1 South CO ELV Exceedence",null,null,"When investigating the cause of wet waste in the boilers, the waste ops team found a recent change to waste operation at the TBWRF that may contributes to increased tonnages of wet waste. Bulky waste is sometimes stored outside of the TBWRF prior to shredding. Improvements have been made to the disposal and transport operation to minimise the amount of bulky waste which is stored outside before being transferred to the building for shredding.",null,null,"changes have been made to the waste movement process to ensure that the bulky waste tipped into outside bays by borough vehicles is transferred into the TBWRF building at the end of the diver shifts. This is to minimise the waste storage outside and reduce chances of wet waste entering the bunkers."]
["2022-09-10","A1 South TOC ELV Exceedence 1 x 1/2 hourly ",null,null,"Cause - Gas Bottles in waste feed\n",null,null,"A Review of the current waste inspections regime will be conducted to scope any feasible improvements that can be implemented to identify gas canisters prior to unloading into the bunker'. Bunker management system in place to allow mixing of waste."]
["2022-09-14","A1 South Particulate matter ELV Exceedence  1 x 1/2 hourly ",null,null,"Due to damaged baghouse filters in FGT 4 compartment 1  \nCompartment 1 was immediately isolated and boiler loads were reduced.   ",null,null,"All bag filters across the bag house compartments are to be changed during the future FGT outage"]
["2022-11-11","A1 South TOC ELV Exceedence 1 x 1/2 hourly ",null,null,"Wet  shredded waste",null,null,"changes have been made to the waste movement process to ensure that the bulky waste tipped into outside bays by borough vehicles is transferred into the TBWRF building at the end of the diver shifts. This is to minimise the waste storage outside and reduce chances of wet waste entering the bunkers"]
["2022-11-13","A1 South CO ELV Exceedence",null,null,"Wet refuse from bottom of Bunkers 1 & 4 causing high levels of CO. The burners were also tripping during this period. All operational procedures were carried out to minimise the production of CO.",null,null,"changes have been made to the waste movement process to ensure that the bulky waste tipped into outside bays by borough vehicles is transferred into the TBWRF building at the end of the diver shifts. This is to minimise the waste storage outside and reduce chances of wet waste entering the bunkers."]
["2022-11-17","A1 South TOC ELV Exceedence 1 x 1/2 hourly ",null,null,"A sudden explosion of gas bottles was a sole cause of this exceedance.",null,null,"A Review of the current waste inspections regime will be conducted to scope any feasible improvements that can be implemented to identify gas canisters prior to unloading into the bunker'. Bunker management system in place to allow mixing of waste."]
["2022-12-21","A2 North TOC ELV Exceedence  1 x 1/2 hourly ",null,null,"Whilst returning Boiler No 4 to service after Riddling Conveyor repairs, both Burners tripped and failed to reset and required intervention from the Operations Team. Unfortunately, the furnace temperature dropped and we were unable to recover within the 30 minute period. This will be investigated by the operations team. "]
[]
[]
[]
[]
[]
[]
[]
[]
[]
[]
[]
[]
[]
[]
[]
["Summary of any complaints received and actions to taken to resolve them."]
["Date","Summary of complaint [including Line/Reference]",null,null,"Reason *",null,null,"Measures taken to prevent reoccurrence"]
[]
[]
[]
[]
[]
[null,null,null,null,"* including whether substantiated by the operator or the EA"]

{"sheet":"Improvements","index":8,"n_rows":39,"n_cols":5,"rows_kept":39,"cut":false,"hidden":false,"merged":[[37,0,37,8],[38,0,47,8],[4,0,4,8],[5,0,13,8],[15,0,15,8],[16,0,24,8],[26,0,26,8],[27,0,35,8]]}
["Annual Performance Report 2022",null,null,null,"LondonEnergy Ltd"]
[]
["Summary of Plant Improvements"]
[]
["Summary of any efficiency improvements that have been completed within the year."]
["New Steam turbine commissioning completed Dec 2022, with Dump mode scheduled for completion following TA4 rewind\nInstallation of new switchgear with modern protection scheme for better, safer and more compliant control of HV electrical systems\nCooling water systems - replacement of damaged/end of life CW plant to prevent breakdowns\nCompletion of FGT PLC Upgrade, modernisation of control systems to mitigate obsolesence\nReplacement of 3off station air/DeNox compressors, to mitigate end of life and improve efficiancy"]
[]
[]
[]
[]
[]
[]
[]
[]
[]
["Summary of any permit improvement conditions that have been completed within the year and the resulting environmental benefits."]
["Implementation of DeNox analyzers local to each boiler, to allow more discrete control at new WIBREF compliant levels\nFGT Vac Pipework - implementation of a localised vacuum system to allow better handling of APCR when manual intervention is required"]
[]
[]
[]
[]
[]
[]
[]
[]
[]
["Summary of any changes to the plant or operating techniques which required a variation to the permit and a summary of the resulting environmental impact."]
[]
[]
[]
[]
[]
[]
[]
[]
[]
[]
["Summary of any other improvements made to the plant or planned to be made and a summary of the resulting environmental benefits."]
["New ash extraction equipment, allowing more efficient removal of APCR from the FGT's\nTurbine vibration monitoring - installation of components complete, system pending for 2023, outages required\nBunker house extraction system - mitigation of CO issues within crane gallery\nReplacement of FGT filter bags during 2023 outages\nImplementation of many service contracts for items of plant:  MKE/ABB for inverter drives and cranes, Sulzer for turbines, HPC for compressors, Thomson for Boilers - to tie in contractors to end of life agreements, giving us resilience for the duration\nTA4 Rewind - mitigation of breakdown in stator integrity, to allow waste throughput at maximum capacity to end of life"]

{"sheet":"Public Liasion","index":9,"n_rows":29,"n_cols":5,"rows_kept":29,"cut":false,"hidden":false,"merged":[[16,0,16,1],[16,2,16,8],[5,0,5,1],[5,2,5,8],[6,0,7,1],[6,2,7,8],[8,0,9,1],[8,2,9,8],[10,0,11,1],[10,2,11,8],[12,0,13,1],[12,2,13,8],[15,0,15,8],[17,0,18,1],[17,2,18,8],[19,0,20,1],[19,2,20,8],[21,0,22,1],[21,2,22,8],[23,0,24,1],[23,2,24,8],[25,0,26,1],[25,2,26,8],[28,0,28,8]]}
["Annual Performance Report 2022",null,null,null,"LondonEnergy Ltd"]
[]
["Details of Public & Stakeholder Liasion"]
[]
["Summary of events held during the reporting year."]
["Date",null,"Description"]
["2022-02-02",null,"In partnership with Enfield Council, LondonEnergy delivered on what happens to waste in north London in partnerships with Enfield Councils Street Cleansing team to an Enfield Primary School.  "]
[]
["2022-05-19",null,"LondonEnergy exhibited at the Camden Jobs and Skills Event to promote current job vacancies to people living in Camden.\n\n"]
[]
["2022-11-17",null,"The HR team exhibited at the UK Career Fair to promote our operational roles to local people living in North London."]
[]
["2022-12-05",null,"Transition Director, LondonEnergy joined the NLWA to speak on a panel on the North London Heat and Power Project construction progress and our operational readiness plans."]
[]
[]
["List of events planned for next year"]
["Date",null,"Description"]
[]
[]
[]
[]
[]
[]
[]
[]
[]
[]
[]
["If you wish to be involved in the public liasion programme, please contact _________________ deanna.donaldson@londonenergyltd.com "]

{"sheet":"CO2 N2O","index":10,"n_rows":22,"n_cols":8,"rows_kept":22,"cut":false,"hidden":false,"merged":[[19,4,19,14],[17,4,17,14],[12,4,12,14],[8,4,8,14],[19,1,19,2],[22,0,23,2],[4,0,4,2],[8,1,8,2],[10,0,10,2],[12,1,12,2],[15,0,15,2],[17,1,17,2]]}
["Annual Performance Report 2022",null,"LondonEnergy Ltd"]
[]
["Carbon dioxide emissions and biogenic content of waste inputs",null,null,null,"Notes:"]
[]
["Carbon dioxide emissions (all types of plant)"]
["Annual mass of carbon dioxide released","x tonnes ",319474.98823751113]
["Annual mass of carbon dioxide released per tonne of waste burned","x tonnes ",{"$f":"C6/'Operational Data'!G21","v":0.65368401415405464}]
["Annual mass of carbon dioxide released per MWh of energy exported","x tonnes ",{"$f":"C6/'Operational Data'!G25","v":1.518503851158389}]
["Description of how annual carbon dioxide mass emission has been calculated","Data from CO2 CEMS",null,null,"Note 1: Where available, data from CO2 CEMS should be used. Otherwise, where no CEMS data is available, a suitable emissions factor should be used based on the tonnage of waste burned e.g.0.992 tCO2/t waste as per Tolvik report 2021, or other justified emissions factor  - refer to embedded Environment Agency guidance note above or updated version for suitable descriptive text."]
[]
["Nitrous oxide emissions (only plants which use ammonia or urea to abate NOx emissions)"]
["Annual mass emissions of nitrous oxide","x tonnes ",{"$f":"'[3]Release to air'!$J$40","v":24.042044347279997}]
["Description of how annual nitrous oxide mass emission has been calculated","Data from NOx CEMS bi-annual monitoring ",null,null,"Note 2: Where available, data from N2O CEMS should be used, or if no CEMS data is available, from periodic monitoring. Otherwise, a suitable emissions factor should be used based on the tonnage of waste burned e.g. 0.0981 kgN20/t waste as per 2021 Pollution Inventory data for plants with urea-based SNCR - refer to embedded Environment Agency guidance note above or updated version for suitable descriptive text."]
["Total annual carbon dioxide and nitrous oxide emissions as carbon dioxide equivalent (whereby 1 t nitrous oxide is equivalent to 298 t carbon dioxide)","x tonnes CO2e",{"$f":"(C12*298)+C6","v":326639.51745300059}]
[]
["Biogenic fraction of the waste and biogenic CO2 emissions (only plants burning residual municipal waste, refuse derived fuel or solid recovered fuel)"]
["Yearly average biogenic percentage of the waste by net calorific value (NCV)","x %",30.9,null,{"$f":"C17*'Operational Data'!G18","v":15101757},{"$f":"C17*C6/100","v":98717.771365390945},{"$f":"C6-F17","v":220757.21687212019},{"$f":"'CO2 N2O'!C6*0.63","v":201269.24258963202}]
["Description of how biogenic NCV percentage has been calculated or estimated","Waste sampling data",null,null,"Note 3: Where available, data from waste sampling should be used; otherwise, an estimated figure with justification can be used, or a figure assumed on the basis of a national average e.g. 2017 WRAP data for residual waste of 51.8% biogenic energy content - refer to embedded Environment Agency guidance note above or updated version for suitable descriptive text, quoting standards where relevant. "]
["Percentage of total carbon dioxide emissions arising from biogenic waste","x %",{"$f":"C17","v":30.9}]
["Description of how percentage biogenic carbon dioxide emissions have been calculated","the measured or estimated biogenic fraction by net calorific value can be assumed to be the same as the biogenic CO2 fraction of the total CO2 emissions from the plant",null,null,"Note 4: Examples include direct measurement via C14 method or BIOMA software - refer to embedded Environment Agency guidance note above or updated version for suitable descriptive text, quoting standards where relevant. Otherwise, as an approximation (and in lieu of any more accurate metrics which may be developed in future), the measured or estimated biogenic fraction by net calorific value can be assumed to be the same as the biogenic CO2 fraction of the total CO2 emissions from the plant. "]
[]
["Comments:"]

{"sheet":"Residue Quality ","index":11,"n_rows":35,"n_cols":6,"rows_kept":35,"cut":false,"hidden":false,"merged":[[16,0,17,1],[16,2,17,6],[18,0,19,1],[18,2,19,6],[12,0,12,6],[13,0,13,1],[13,2,13,6],[5,0,6,6],[7,0,8,6],[9,0,10,6],[14,0,15,1],[14,2,15,6],[20,0,21,1],[20,2,21,6],[22,0,23,1],[22,2,23,6],[31,3,31,4],[27,2,28,2],[28,3,28,4],[28,5,28,6],[27,3,27,6],[26,0,26,6],[35,0,40,6],[32,3,32,4],[34,0,34,6],[27,0,28,1],[29,0,29,1],[30,0,30,1],[31,0,31,1],[32,0,32,1],[29,3,29,4],[30,3,30,4],[29,5,29,6],[30,5,30,6],[31,5,31,6],[32,5,32,6]]}
["Annual Performance Report 2022",null,null,null,"LondonEnergy Ltd"]
[]
["Residue Quality Monitoring Requirements"]
[]
["Summary of monitoring undertaken and compliance"]
["Bi-monthly IBA hazardous waste assessments"]
[]
[]
[]
[]
[]
[]
["Commentary on any specific events"]
["Date & Event",null,"Description"]
["NA"]
[]
[]
[]
[]
[]
[]
[]
[]
[]
[]
[]
["Residue Quality Monitoring Results"]
["Parameter (unit) ",null,"Limit","Normal Operation "]
[null,null,null,"Bottom ash  ",null,"APC Residues"]
["Loss on Ignition (average %)",null,"<5%","-"]
["Total Organic Carbon (average %)",null,"<3%",0.62]
["No. of Assessments Undertaken",null,"---",23,null,4]
["No. of Hazardous Results",null,"---",0]
[]
["Comments :"]

{"sheet":"Water","index":12,"n_rows":39,"n_cols":10,"rows_kept":39,"cut":false,"hidden":false,"merged":[[36,0,36,2],[36,3,36,5],[37,0,37,2],[37,3,37,5],[38,0,38,2],[38,3,38,5],[33,0,33,2],[33,3,33,5],[34,0,34,2],[34,3,34,5],[35,0,35,2],[35,3,35,5],[30,0,30,2],[30,3,30,5],[31,0,31,2],[31,3,31,5],[32,0,32,2],[32,3,32,5],[5,0,6,8],[7,0,8,8],[9,0,10,8],[12,0,12,8],[13,0,13,1],[13,2,13,8],[21,0,21,8],[22,0,22,2],[14,0,15,1],[14,2,15,8],[16,0,17,1],[16,2,17,8],[18,0,19,1],[18,2,19,8],[23,0,23,2],[24,0,24,2],[25,0,25,2],[23,3,23,5],[24,3,24,5],[25,3,25,5],[29,0,29,2],[26,0,26,2],[27,0,27,2],[28,0,28,2],[26,3,26,5],[27,3,27,5],[28,3,28,5],[29,3,29,5]]}
["Annual Performance Report 2022",null,null,null,"LondonEnergy Ltd"]
[]
["Emissions to Water"]
[]
["Summary of monitoring undertaken and compliance"]
["Quarterly monitoring of emissions to sewer. Continuous sampling is undertaken. Flow weighted automatic seven day sample is collected. Samples are combined to give a monthly sample, one monthly sample to be analysed per quarter)."]
[]
[]
[]
[]
[]
[]
["Commentary on any specific events"]
["Date & Event",null,"Description"]
["NA",null,"NA"]
[]
[]
[]
[]
[]
[]
["Emissions to Water / Sewer"]
["Parameter",null,null,"Monitoring Frequency",null,null,"Limit","Target","Max.","Average"]
[" Dieldrin ng/l"," Dieldrin ng/l"," Dieldrin ng/l","Quarterly",null,null,"50 ng/l","NA","NA",22.5]
[" Gamma-   Hexachlorocyclohexane ng/l"," Gamma-   Hexachlorocyclohexane ng/l"," Gamma-   Hexachlorocyclohexane ng/l","Quarterly",null,null,"100 ng/l","NA","NA",22.5]
[" Polychlorinated biphenyls ng/l"," Polychlorinated biphenyl 28 ng/l"," Polychlorinated biphenyl 28 ng/l","Quarterly",null,null,"50 ng/l","NA","NA",10]
[" Trifluralin ng/l"," Trifluralin ng/l"," Trifluralin ng/l","Quarterly",null,null,"50 ng/l","NA","NA",22.5]
[" Hexachlorobenzene ng/l"," Hexachlorobenzene ng/l"," Hexachlorobenzene ng/l","Quarterly",null,null,"300 ng/l","NA","NA",22.5]
[" Hexachlorobutadiene ng/l"," Hexachlorobutadiene ng/l"," Hexachlorobutadiene ng/l","Quarterly",null,null,"50 ng/l","NA","NA",27.5]
[" Trichlorobenzene ng/l"," Trichlorobenzene ng/l"," Trichlorobenzene ng/l","Quarterly",null,null,"50 ng/l","NA","NA",22.5]
[" Dichlorvos ng/l"," Dichlorvos ng/l"," Dichlorvos ng/l","Quarterly",null,null,"50 ng/l","NA","NA",22.5]
[" Fenitrothion ng/l"," Fenitrothion ng/l"," Fenitrothion ng/l","Quarterly",null,null,"50 ng/l","NA","NA",22.5]
[" Simazine ng/l"," Simazine ng/l"," Simazine ng/l","Quarterly",null,null,"300 ng/l","NA","NA",67.5]
[" Atrazine ng/l"," Atrazine ng/l"," Atrazine ng/l","Quarterly",null,null,"300 ng/l","NA","NA",67.5]
[" Pentachlorophenol & it`s   compounds ng/l"," Pentachlorophenol & it`s   compounds ng/l"," Pentachlorophenol & it`s   compounds ng/l","Quarterly",null,null,"300 ng/l","NA","NA",42.5]
[" Total Cadmium ug/l"," Total Cadmium ng/l"," Total Cadmium ng/l","Quarterly",null,null,"50 μg/l","NA","NA",1]
[" Total Mercury ug/l "," Total Mercury ng/l "," Total Mercury ng/l ","Quarterly",null,null,"10 μg/l","NA","NA",0.52750000000000008]
["Chromium, copper, lead, nickel,silver and zinc in total mg/l",null,null,"Quarterly",null,null,"5 mg/l","NA","NA",1.3424999999999998]
["Organo-tin",null,null,"Quarterly",null,null,"100 ng/l","NA","NA",42.7]

{"sheet":"Air (periodic)","index":13,"n_rows":39,"n_cols":9,"rows_kept":39,"cut":false,"hidden":false,"merged":[[9,5,9,6],[5,8,8,11],[9,8,11,11],[11,0,11,1],[8,0,8,6],[5,0,6,6],[12,0,12,1],[11,3,11,4],[12,3,12,4],[9,0,10,1],[9,3,10,4],[9,2,10,2],[17,0,17,1],[18,0,18,1],[13,0,13,1],[14,0,14,1],[15,0,15,1],[39,0,40,8],[25,0,25,1],[26,0,26,1],[22,0,22,1],[23,0,23,1],[37,0,37,1],[27,0,27,1],[28,0,28,1],[29,0,29,1],[30,0,30,1],[31,0,31,1],[32,0,32,1],[37,3,37,4],[29,3,29,4],[30,3,30,4],[36,3,36,4],[15,3,15,4],[16,3,16,4],[17,3,17,4],[38,0,38,8],[19,0,19,1],[20,0,20,1],[21,0,21,1],[34,3,34,4],[35,3,35,4],[33,0,33,1],[34,0,34,1],[35,0,35,1],[36,0,36,1],[24,0,24,1],[32,3,32,4],[16,0,16,1],[4,0,4,6],[18,3,18,4],[27,3,27,4],[33,3,33,4],[19,3,19,4],[20,3,20,4],[21,3,21,4],[22,3,22,4],[23,3,23,4],[24,3,24,4],[31,3,31,4],[25,3,25,4],[26,3,26,4],[28,3,28,4],[13,3,13,4],[14,3,14,4]]}
["Annual Performance Report 2022",null,null,null,"LondonEnergy Ltd"]
[]
["Emissions to Air (periodically monitored)"]
[]
["Summary of monitoring undertaken, standards used and compliance",null,null,null,null,null,null,null,"Notes:"]
["Quarterly and biannual monitoring using standards defined in EPR/YP3033BE",null,null,null,null,null,null,null,"Template may require adjustment for any bespoke monitoring requirements of permit. "]
[]
[]
["Results of emissions to air that are periodically monitored"]
["Substance",null,"Ref. Period","Emission Limit Value",null,"Average",null,null,"User to add additional tables as necessary, depending on whether quarterly or bi-annual reporting is required for the compliance year"]
[null,null,null,null,null,"A1","A2"]
["Hydrogen fluoride",null,"1 hr","2 mg/m3",null,{"$f":"'[3]Release to air'!$F$4","v":4.3749999999999997E-2},{"$f":"'[3]Release to air'!$F$22","v":3.5500000000000004E-2}]
["Cd and Th and their compounds",null,"6-8hrs","0.05 mg/m3",null,{"$f":"'[3]Release to air'!$F$8","v":1.5225E-3},{"$f":"'[3]Release to air'!$F$26","v":1.5E-3}]
["Hg and its compounds",null,"6-8hrs","0.05 mg/m3",null,{"$f":"'[3]Release to air'!$F$9","v":9.0749999999999989E-4},{"$f":"'[3]Release to air'!$F$27","v":1.1624999999999999E-3}]
["Sb, As, Pb, Cr, Co, Cu, Mn, Ni, V and their compounds",null,"6-8hrs","0.5 mg/m3",null,{"$f":"'[3]Release to air'!$F$7","v":0.31475000000000003},{"$f":"'[3]Release to air'!$F$25","v":0.27524999999999999}]
["Dioxins & Furans (I-TEQ)",null,"6-8hrs","0.1 ng/m3",null,{"$f":"'[3]Release to air'!$F$6","v":1.3850000000000001E-2},{"$f":"'[3]Release to air'!$F$24","v":5.8999999999999999E-3}]
["PCBs (WHO-TEQ Humans / Mammals)",null,"6-8hrs","None set ng/m3",null,{"$f":"'[3]Release to air'!$F$76","v":2.7000000000000001E-3},{"$f":"'[3]Release to air'!$F$99","v":8.4000000000000003E-4}]
["PCBs (WHO-TEQ Fish)",null,"6-8hrs","None set ng/m3",null,{"$f":"'[3]Release to air'!$F$77","v":5.5000000000000002E-5},{"$f":"'[3]Release to air'!$F$100","v":4.8000000000000001E-5}]
["PCBs (WHO-TEQ Birds)",null,"6-8hrs","None set ng/m3",null,{"$f":"'[3]Release to air'!$F$78","v":2.9499999999999999E-3},{"$f":"'[3]Release to air'!$F$101","v":3.7499999999999999E-3}]
["Dioxins & Furans (WHO-TEQ Humans / Mammals)",null,"6-8hrs","None set ng/m3",null,{"$f":"'[3]Release to air'!$F$79","v":1.3850000000000001E-2},{"$f":"'[3]Release to air'!$F$102","v":6.0499999999999998E-3}]
["Dioxins & Furans (WHO-TEQ Fish)",null,"6-8hrs","None set ng/m3",null,{"$f":"'[3]Release to air'!$F$80","v":1.49E-2},{"$f":"'[3]Release to air'!$F$103","v":6.4000000000000003E-3}]
["Dioxins & Furans (WHO-TEQ Birds)",null,"6-8hrs","None set ng/m3",null,{"$f":"'[3]Release to air'!$F$81","v":3.4450000000000001E-2},{"$f":"'[3]Release to air'!$F$104","v":4.8999999999999998E-3}]
["Anthanthrene",null,"6-8hrs","None set µg/m3",null,{"$f":"'[3]Release to air'!$F$60","v":2.5999999999999999E-3},{"$f":"'[3]Release to air'!$F$83","v":2.2000000000000001E-3}]
["Benzo(a)anthracene",null,"6-8hrs","None set µg/m3",null,{"$f":"'[3]Release to air'!$F$60","v":2.5999999999999999E-3},{"$f":"'[3]Release to air'!$F$83","v":2.2000000000000001E-3}]
["Benzo(a)pyrene",null,"6-8hrs","None set µg/m3",null,{"$f":"'[3]Release to air'!$F$60","v":2.5999999999999999E-3},{"$f":"'[3]Release to air'!$F$83","v":2.2000000000000001E-3}]
["Benzo(b)fluoranthene",null,"6-8hrs","None set µg/m3",null,{"$f":"'[3]Release to air'!$F$60","v":2.5999999999999999E-3},{"$f":"'[3]Release to air'!$F$83","v":2.2000000000000001E-3}]
["Benzo(b)naptho(2,1-d) thiophene",null,"6-8hrs","None set µg/m3",null,{"$f":"'[3]Release to air'!$F$64","v":1.7049999999999999E-2},{"$f":"'[3]Release to air'!$F$87","v":1.2749999999999999E-2}]
["Benzo(c)phenanthrene",null,"6-8hrs","None set µg/m3",null,{"$f":"'[3]Release to air'!$F$60","v":2.5999999999999999E-3},{"$f":"'[3]Release to air'!$F$88","v":2.4000000000000002E-3}]
["Benzo(ghi)perylene",null,"6-8hrs","None set µg/m3",null,{"$f":"'[3]Release to air'!$F$60","v":2.5999999999999999E-3},{"$f":"'[3]Release to air'!$F$83","v":2.2000000000000001E-3}]
["Benzo(k)fluoranthene",null,"6-8hrs","None set µg/m3",null,{"$f":"'[3]Release to air'!$F$60","v":2.5999999999999999E-3},{"$f":"'[3]Release to air'!$F$83","v":2.2000000000000001E-3}]
["Cholanthrene",null,"6-8hrs","None set µg/m3",null,{"$f":"'[3]Release to air'!$F$60","v":2.5999999999999999E-3},{"$f":"'[3]Release to air'!$F$83","v":2.2000000000000001E-3}]
["Chrysene",null,"6-8hrs","None set µg/m3",null,{"$f":"'[3]Release to air'!$F$60","v":2.5999999999999999E-3},{"$f":"'[3]Release to air'!$F$83","v":2.2000000000000001E-3}]
["Cyclopenta(cd)pyrene",null,"6-8hrs","None set µg/m3",null,{"$f":"'[3]Release to air'!$F$60","v":2.5999999999999999E-3},{"$f":"'[3]Release to air'!$F$83","v":2.2000000000000001E-3}]
["Dibenzo(ai)pyrene",null,"6-8hrs","None set µg/m3",null,{"$f":"'[3]Release to air'!$F$60","v":2.5999999999999999E-3},{"$f":"'[3]Release to air'!$F$83","v":2.2000000000000001E-3}]
["Dibenzo(ah)anthracene",null,"6-8hrs","None set µg/m3",null,{"$f":"'[3]Release to air'!$F$60","v":2.5999999999999999E-3},{"$f":"'[3]Release to air'!$F$83","v":2.2000000000000001E-3}]
["Fluoranthene",null,"6-8hrs","None set µg/m3",null,{"$f":"'[3]Release to air'!$F$73","v":1.55E-2},{"$f":"'[3]Release to air'!$F$96","v":1.5699999999999999E-2}]
["Indeno(123-cd) pyrene",null,"6-8hrs","None set µg/m3",null,{"$f":"'[3]Release to air'!$F$60","v":2.5999999999999999E-3},{"$f":"'[3]Release to air'!$F$83","v":2.2000000000000001E-3}]
["Naphthalene",null,"6-8hrs","None set µg/m3",null,{"$f":"'[3]Release to air'!$F$75","v":0.85000000000000009},{"$f":"'[3]Release to air'!$F$98","v":0.78}]
["Comments :"]

{"sheet":"Air (CEMS)","index":14,"n_rows":28,"n_cols":13,"rows_kept":28,"cut":false,"hidden":false,"merged":[[28,0,29,6],[10,0,10,6],[13,0,14,0],[11,0,12,0],[11,2,12,2],[11,1,12,1],[11,3,11,4],[11,5,11,6]]}
["Annual Performance Report 2022",null,null,null,"LondonEnergy Ltd"]
[null,null,null,null,null,null,null,null,null,null,null,null,"Notes:"]
["Emissions to Air (continously monitored)",null,null,null,null,null,null,null,null,null,null,null,"Template may require adjustment for any bespoke monitoring requirements of permit"]
[null,null,null,null,null,null,null,null,null,null,null,null,"Report to 2 decimal places, i.e. xx.xx%"]
["Summary of monitoring undertaken, standards used and compliance"]
["Continuous measurement using CEMS as per EPR/YP3033BE"]
[]
[]
[]
[]
["Results of emissions to air that are continuously monitored (maximum and average values for each line)"]
["Substance","Reference Period","Emission Limit Value","A1",null,"A2"]
[null,null,null,"Max.","Avg.","Max.","Avg."]
["Oxides of nitrogen","Daily mean","200 mg/m3 ",{"$f":"NOx!O19","v":198},{"$f":"NOx!N19","v":154.61666666666665},{"$f":"NOx!O34","v":196.8},{"$f":"NOx!N34","v":170.95000000000002}]
[null,"½ hourly mean","400 mg/m3 ",{"$f":"NOx!M19","v":329.2},{"$f":"NOx!L19","v":154.61666666666665},{"$f":"NOx!M34","v":303.60000000000002},{"$f":"NOx!L34","v":170.95000000000002}]
["Particulates","Daily mean","10 mg/m3",{"$f":"Particulates!O19","v":11},{"$f":"Particulates!N19","v":1.6916666666666664},{"$f":"Particulates!O34","v":5.0999999999999996},{"$f":"Particulates!N34","v":1.4166666666666667}]
[null,"½ hourly mean","30 mg/m3 ",{"$f":"Particulates!M19","v":48.4},{"$f":"Particulates!L19","v":1.6916666666666664},{"$f":"Particulates!M34","v":85.7},{"$f":"Particulates!L34","v":1.4166666666666667}]
["Total Organic Carbon ","Daily mean","10 mg/m3 ",{"$f":"TOC!O19","v":47.8},{"$f":"Particulates!N19","v":1.6916666666666664},{"$f":"TOC!O34","v":3.5},{"$f":"TOC!N34","v":1.0249999999999999}]
[null,"½ hourly mean","20 mg/m3 ",{"$f":"TOC!M19","v":318.8},{"$f":"Particulates!L19","v":1.6916666666666664},{"$f":"TOC!M34","v":95.8},{"$f":"TOC!L34","v":1.0249999999999999}]
["Hydrogen chloride ","Daily mean","10 mg/m3 ",{"$f":"HCl!O19","v":9.4},{"$f":"HCl!N19","v":5.8666666666666671},{"$f":"HCl!O34","v":9.1},{"$f":"HCl!N34","v":5.55}]
[null,"½ hourly mean","60 mg/m3 ",{"$f":"HCl!M19","v":42.1},{"$f":"HCl!L19","v":6.0083333333333337},{"$f":"HCl!M34","v":59.5},{"$f":"HCl!L34","v":5.4666666666666659}]
["Sulphur dioxide","Daily mean","50 mg/m3 ",{"$f":"'SO2'!O19","v":29.7},{"$f":"'SO2'!N19","v":11.500000000000002},{"$f":"'SO2'!O34","v":43.7},{"$f":"'SO2'!N34","v":25.641666666666666}]
[null,"½ hourly mean","200 mg/m3 ",{"$f":"'SO2'!M19","v":136.19999999999999},{"$f":"'SO2'!L19","v":11.500000000000002},{"$f":"'SO2'!M34","v":128.19999999999999},{"$f":"'SO2'!L34","v":25.574999999999999}]
["Carbon monoxide ","Daily mean","50 mg/m3 ",{"$f":"'CO 95% 10 min'!Q19","v":115.9},{"$f":"'CO 95% 10 min'!P19","v":29.425000000000001},{"$f":"'CO 95% 10 min'!Q34","v":61.4},{"$f":"'CO 95% 10 min'!P34","v":25.825000000000003}]
[null,"95%ile 10-min avg *","150 mg/m3 *",{"$f":"'CO 95% 10 min'!O19","v":1718.6},{"$f":"'CO 95% 10 min'!M19","v":516.79999999999995},{"$f":"'CO 95% 10 min'!O34","v":1151.7},{"$f":"'CO 95% 10 min'!M34","v":503.1}]
[" Ammonia","Daily mean","No limit set",{"$f":"'NH3'!O19","v":21.5},{"$f":"'NH3'!N19","v":5.4666666666666659},{"$f":"'NH3'!O34","v":33.299999999999997},{"$f":"'NH3'!N34","v":7.875}]
["* = delete or amend as appropriate"]
["Comments :"]

{"sheet":"HCl","index":15,"n_rows":79,"n_cols":17,"rows_kept":79,"cut":false,"hidden":false,"merged":[[12,16,15,18],[51,9,63,9],[66,9,78,9],[4,9,4,14],[4,1,4,3],[4,4,4,6],[48,0,51,6],[47,0,47,6],[6,9,18,9],[21,9,33,9],[36,9,48,9],[3,16,7,18],[9,16,11,18]]}
["Annual Performance Report 2022",null,null,null,"LondonEnergy Ltd"]
[]
["Monitoring of Hydrogen Chloride emissions",null,null,"Whole Installation",null,null,"See  Notes in Cell Q3",null,null,"Monitoring of Hydrogen Chloride emissions",null,null,null,"Per Combustion Line",null,null,"Notes:"]
[null,null,null,null,null,null,null,null,null,null,null,null,null,null,null,null,"User to add logic to complete Whole installation, Table A5:G18. From the data in Per Combustion Line, Table J6:O79, subject to No. of lines installed"]
["mg/Nm3","1/2 Hourly Reference Periods",null,null,"Daily Reference Periods"]
[2022,"1/2 hourly HCl ELV","Monthly 1/2 hourly mean","Highest 1/2 hourly maximum","Daily HCl ELV","Monthly daily mean","Highest daily maximum",null,null,2022,"mg/Nm3","Monthly 1/2 hourly mean","Monthly 1/2 hourly maximum","Monthly daily mean","Monthly daily maximum"]
["Jan",60,{"$f":"AVERAGE(L7,L22)","v":6},{"$f":"MAX(M7,M22)","v":40.1},10,{"$f":"AVERAGE(N7,N22)","v":6},{"$f":"MAX(O7,O22)","v":9.3000000000000007},null,null,"A1","Jan",7.1,40.1,7.1,9.3000000000000007]
["Feb",60,{"$f":"AVERAGE(L8,L23)","v":5.5},{"$f":"MAX(M8,M23)","v":29.3},10,{"$f":"AVERAGE(N8,N23)","v":5.5},{"$f":"MAX(O8,O23)","v":8.8000000000000007},null,null,null,"Feb",5.4,27.4,5.4,8.8000000000000007]
["Mar",60,{"$f":"AVERAGE(L9,L24)","v":6.5},38.5,10,{"$f":"AVERAGE(N9,N24)","v":5.65},8.6,null,null,null,"Mar",7.6,38.5,5.9,7.6,null,"Whole Installation table A5:G18:"]
["Apr",60,{"$f":"AVERAGE(L10,L25)","v":4.8499999999999996},59.5,10,{"$f":"AVERAGE(N10,N25)","v":4.8499999999999996},8.9,null,null,null,"Apr",5.0999999999999996,35.9,5.0999999999999996,8.9,null,"Mean: for 1/2 hourly and daily periods calculate mean of values across all operational combustion lines for the month"]
["May",60,{"$f":"AVERAGE(L11,L26)","v":4.2},49.3,10,{"$f":"AVERAGE(N11,N26)","v":4.2},8.4,null,null,null,"May",4,33.299999999999997,4,7.9]
["Jun",60,{"$f":"AVERAGE(L12,L27)","v":5.25},37.700000000000003,10,{"$f":"AVERAGE(N12,N27)","v":5.25},8.9,null,null,null,"Jun",5.6,34.200000000000003,5.6,8.6]
["Jul",60,{"$f":"AVERAGE(L13,L28)","v":5.15},42.1,10,{"$f":"AVERAGE(N13,N28)","v":5.15},8.5,null,null,null,"Jul",4.8,42.1,4.8,7.8,null,"Maximum: for 1/2 hourly and daily periods use the highest value across all operational combustion lines for the month"]
["Aug",60,{"$f":"AVERAGE(L14,L29)","v":5.45},26.9,10,{"$f":"AVERAGE(N14,N29)","v":5.45},9.1,null,null,null,"Aug",5.7,21,5.7,8.9]
["Sep",60,{"$f":"AVERAGE(L15,L30)","v":5.3},34.799999999999997,10,{"$f":"AVERAGE(N15,N30)","v":5.8},8.6999999999999993,null,null,null,"Sep",5.8,27.6,5.8,8.6999999999999993]
["Oct",60,{"$f":"AVERAGE(L16,L31)","v":7.05},44.8,10,{"$f":"AVERAGE(N16,N31)","v":7.05},8.6,null,null,null,"Oct",7.1,16.899999999999999,7.1,8.3000000000000007]
["Nov",60,{"$f":"AVERAGE(L17,L32)","v":7.05},29.6,10,{"$f":"AVERAGE(N17,N32)","v":7.05},9.4,null,null,null,"Nov",7,17.8,7,9.4]
["Dec",60,{"$f":"AVERAGE(L18,L33)","v":6.5500000000000007},35.6,10,{"$f":"AVERAGE(N18,N33)","v":6.5500000000000007},9,null,null,null,"Dec",6.9,35.6,6.9,9]
[null,null,null,null,null,null,null,null,null,null,"Annual",{"$f":"AVERAGE(L7:L18)","v":6.0083333333333337},{"$f":"MAX(M7:M18)","v":42.1},{"$f":"AVERAGE(N7:N18)","v":5.8666666666666671},{"$f":"MAX(O7:O18)","v":9.4}]
[]
[null,null,null,null,null,null,null,null,null,2022,"mg/Nm3","Monthly 1/2 hourly mean","Monthly 1/2 hourly maximum","Monthly daily mean","Monthly daily maximum"]
[null,null,null,null,null,null,null,null,null,"A2","Jan",4.9000000000000004,23.1,4.9000000000000004,8.1]
[null,null,null,null,null,null,null,null,null,null,"Feb",5.6,29.3,5.6,8.6]
[null,null,null,null,null,null,null,null,null,null,"Mar",5.4,30.4,5.4,8.6]
[null,null,null,null,null,null,null,null,null,null,"Apr",4.5999999999999996,59.5,4.5999999999999996,8.8000000000000007]
[null,null,null,null,null,null,null,null,null,null,"May",4.4000000000000004,49.3,4.4000000000000004,8.4]
[null,null,null,null,null,null,null,null,null,null,"Jun",4.9000000000000004,37.700000000000003,4.9000000000000004,8.9]
[null,null,null,null,null,null,null,null,null,null,"Jul",5.5,37.4,5.5,8.5]
[null,null,null,null,null,null,null,null,null,null,"Aug",5.2,26.9,5.2,9.1]
[null,null,null,null,null,null,null,null,null,null,"Sep",4.8,34.799999999999997,5.8,8.1]
[null,null,null,null,null,null,null,null,null,null,"Oct",7,44.8,7,8.6]
[null,null,null,null,null,null,null,null,null,null,"Nov",7.1,29.6,7.1,9]
[null,null,null,null,null,null,null,null,null,null,"Dec",6.2,29.2,6.2,8.1]
[null,null,null,null,null,null,null,null,null,null,"Annual",{"$f":"AVERAGE(L22:L33)","v":5.4666666666666659},{"$f":"MAX(M22:M33)","v":59.5},{"$f":"AVERAGE(N22:N33)","v":5.55},{"$f":"MAX(O22:O33)","v":9.1}]
[]
[null,null,null,null,null,null,null,null,null,"20xx","mg/Nm3","Monthly 1/2 hourly mean","Monthly 1/2 hourly maximum","Monthly daily mean","Monthly daily maximum"]
[null,null,null,null,null,null,null,null,null,"A3","Jan"]
[null,null,null,null,null,null,null,null,null,null,"Feb"]
[null,null,null,null,null,null,null,null,null,null,"Mar"]
[null,null,null,null,null,null,null,null,null,null,"Apr"]
[null,null,null,null,null,null,null,null,null,null,"May"]
[null,null,null,null,null,null,null,null,null,null,"Jun"]
[null,null,null,null,null,null,null,null,null,null,"Jul"]
[null,null,null,null,null,null,null,null,null,null,"Aug"]
[null,null,null,null,null,null,null,null,null,null,"Sep"]
[null,null,null,null,null,null,null,null,null,null,"Oct"]
[null,null,null,null,null,null,null,null,null,null,"Nov"]
["Comments :",null,null,null,null,null,null,null,null,null,"Dec"]
[null,null,null,null,null,null,null,null,null,null,"Annual",{"$error":"#DIV/0!"},0,{"$error":"#DIV/0!"},0]
[]
[null,null,null,null,null,null,null,null,null,"20xx","mg/Nm3","Monthly 1/2 hourly mean","Monthly 1/2 hourly maximum","Monthly daily mean","Monthly daily maximum"]
[null,null,null,null,null,null,null,null,null,"A4","Jan"]
[null,null,null,null,null,null,null,null,null,null,"Feb"]
[null,null,null,null,null,null,null,null,null,null,"Mar"]
[null,null,null,null,null,null,null,null,null,null,"Apr"]
[null,null,null,null,null,null,null,null,null,null,"May"]
[null,null,null,null,null,null,null,null,null,null,"Jun"]
[null,null,null,null,null,null,null,null,null,null,"Jul"]
[null,null,null,null,null,null,null,null,null,null,"Aug"]
[null,null,null,null,null,null,null,null,null,null,"Sep"]
[null,null,null,null,null,null,null,null,null,null,"Oct"]
[null,null,null,null,null,null,null,null,null,null,"Nov"]
[null,null,null,null,null,null,null,null,null,null,"Dec"]
[null,null,null,null,null,null,null,null,null,null,"Annual",{"$error":"#DIV/0!"},0,{"$error":"#DIV/0!"},0]
[]
[null,null,null,null,null,null,null,null,null,"20xx","mg/Nm3","Monthly 1/2 hourly mean","Monthly 1/2 hourly maximum","Monthly daily mean","Monthly daily maximum"]
[null,null,null,null,null,null,null,null,null,"A5","Jan"]
[null,null,null,null,null,null,null,null,null,null,"Feb"]
[null,null,null,null,null,null,null,null,null,null,"Mar"]
[null,null,null,null,null,null,null,null,null,null,"Apr"]
[null,null,null,null,null,null,null,null,null,null,"May"]
[null,null,null,null,null,null,null,null,null,null,"Jun"]
[null,null,null,null,null,null,null,null,null,null,"Jul"]
[null,null,null,null,null,null,null,null,null,null,"Aug"]
[null,null,null,null,null,null,null,null,null,null,"Sep"]
[null,null,null,null,null,null,null,null,null,null,"Oct"]
[null,null,null,null,null,null,null,null,null,null,"Nov"]
[null,null,null,null,null,null,null,null,null,null,"Dec"]
[null,null,null,null,null,null,null,null,null,null,"Annual",{"$error":"#DIV/0!"},0,{"$error":"#DIV/0!"},0]

{"sheet":"SO2","index":16,"n_rows":79,"n_cols":17,"rows_kept":79,"cut":false,"hidden":false,"merged":[[3,16,7,18],[9,16,11,18],[12,16,15,18],[66,9,78,9],[4,1,4,3],[4,4,4,6],[4,9,4,14],[6,9,18,9],[21,9,33,9],[36,9,48,9],[47,0,47,6],[48,0,51,6],[51,9,63,9]]}
["Annual Performance Report 2022",null,null,null,"LondonEnergy Ltd"]
[]
["Monitoring of Sulphur dioxide emissions",null,null,"Whole Installation",null,null,"See  Notes in Cell Q3",null,null,"Monitoring of Sulphur dioxide emissions",null,null,null,"Per Combustion Line",null,null,"Notes:"]
[null,null,null,null,null,null,null,null,null,null,null,null,null,null,null,null,"User to add logic to complete Whole installation, Table A5:G18. From the data in Per Combustion Line, Table J6:O79, subject to No. of lines installed"]
["mg/Nm3","1/2 Hourly Reference Periods",null,null,"Daily Reference Periods"]
[2022,"1/2 hourly SO2 ELV","Monthly 1/2 hourly mean","Highest 1/2 hourly maximum","Daily SO2 ELV","Monthly daily mean","Highest daily maximum",null,null,2022,"mg/Nm3","Monthly 1/2 hourly mean","Monthly 1/2 hourly maximum","Monthly daily mean","Monthly daily maximum"]
["Jan",200,{"$f":"AVERAGE(L7,L22)","v":19.299999999999997},{"$f":"MAX(M7,M22)","v":109},50,{"$f":"AVERAGE(N7,N22)","v":19.299999999999997},{"$f":"MAX(O7,O22)","v":40.6},null,null,"A1","Jan",12.7,74.900000000000006,12.7,21.4]
["Feb",200,{"$f":"AVERAGE(L8,L23)","v":21.1},{"$f":"MAX(M8,M23)","v":97.7},50,{"$f":"AVERAGE(N8,N23)","v":21.1},{"$f":"MAX(O8,O23)","v":37.4},null,null,null,"Feb",14.4,75.3,14.4,29.7]
["Mar",200,{"$f":"AVERAGE(L9,L24)","v":22.45},116.1,50,{"$f":"AVERAGE(N9,N24)","v":22.45},42.3,null,null,null,"Mar",12.4,74,12.4,24.4,null,"Whole Installation table A5:G18:"]
["Apr",200,{"$f":"AVERAGE(L10,L25)","v":18.8},136.19999999999999,50,{"$f":"AVERAGE(N10,N25)","v":18.8},40.9,null,null,null,"Apr",8.8000000000000007,136.19999999999999,8.8000000000000007,17,null,"Mean: for 1/2 hourly and daily periods calculate mean of values across all operational combustion lines for the month"]
["May",200,{"$f":"AVERAGE(L11,L26)","v":15.5},121.4,50,{"$f":"AVERAGE(N11,N26)","v":15.5},40.700000000000003,null,null,null,"May",10.5,99.5,10.5,26.1]
["Jun",200,{"$f":"AVERAGE(L12,L27)","v":20.5},128.19999999999999,50,{"$f":"AVERAGE(N12,N27)","v":20.5},38.5,null,null,null,"Jun",13.2,86.7,13.2,23.5]
["Jul",200,{"$f":"AVERAGE(L13,L28)","v":18.850000000000001},92.6,50,{"$f":"AVERAGE(N13,N28)","v":18.850000000000001},43.7,null,null,null,"Jul",13.9,83.1,13.9,23.7,null,"Maximum: for 1/2 hourly and daily periods use the highest value across all operational combustion lines for the month"]
["Aug",200,{"$f":"AVERAGE(L14,L29)","v":20.2},96,50,{"$f":"AVERAGE(N14,N29)","v":20.2},38,null,null,null,"Aug",13.4,60.5,13.4,25.7]
["Sep",200,{"$f":"AVERAGE(L15,L30)","v":16.2},85.1,50,{"$f":"AVERAGE(N15,N30)","v":16.2},33.4,null,null,null,"Sep",10.4,71.7,10.4,15.4]
["Oct",200,{"$f":"AVERAGE(L16,L31)","v":19.100000000000001},79,50,{"$f":"AVERAGE(N16,N31)","v":19.5},34.299999999999997,null,null,null,"Oct",10.199999999999999,42.6,10.199999999999999,16.399999999999999]
["Nov",200,{"$f":"AVERAGE(L17,L32)","v":13.1},45.7,50,{"$f":"AVERAGE(N17,N32)","v":13.1},29.5,null,null,null,"Nov",8.8000000000000007,42.3,8.8000000000000007,15.1]
["Dec",200,{"$f":"AVERAGE(L18,L33)","v":17.350000000000001},89.1,50,{"$f":"AVERAGE(N18,N33)","v":17.350000000000001},32.9,null,null,null,"Dec",9.3000000000000007,40.1,9.3000000000000007,13.9]
[null,null,null,null,null,null,null,null,null,null,"Annual",{"$f":"AVERAGE(L7:L18)","v":11.500000000000002},{"$f":"MAX(M7:M18)","v":136.19999999999999},{"$f":"AVERAGE(N7:N18)","v":11.500000000000002},{"$f":"MAX(O7:O18)","v":29.7}]
[]
[null,null,null,null,null,null,null,null,null,2022,"mg/Nm3","Monthly 1/2 hourly mean","Monthly 1/2 hourly maximum","Monthly daily mean","Monthly daily maximum"]
[null,null,null,null,null,null,null,null,null,"A2","Jan",25.9,109,25.9,40.6]
[null,null,null,null,null,null,null,null,null,null,"Feb",27.8,97.7,27.8,37.4]
[null,null,null,null,null,null,null,null,null,null,"Mar",32.5,116.1,32.5,42.3]
[null,null,null,null,null,null,null,null,null,null,"Apr",28.8,125.9,28.8,40.9]
[null,null,null,null,null,null,null,null,null,null,"May",20.5,121.4,20.5,40.700000000000003]
[null,null,null,null,null,null,null,null,null,null,"Jun",27.8,128.19999999999999,27.8,38.5]
[null,null,null,null,null,null,null,null,null,null,"Jul",23.8,92.6,23.8,43.7]
[null,null,null,null,null,null,null,null,null,null,"Aug",27,96,27,38]
[null,null,null,null,null,null,null,null,null,null,"Sep",22,85.1,22,33.4]
[null,null,null,null,null,null,null,null,null,null,"Oct",28,79,28.8,34.299999999999997]
[null,null,null,null,null,null,null,null,null,null,"Nov",17.399999999999999,45.7,17.399999999999999,29.5]
[null,null,null,null,null,null,null,null,null,null,"Dec",25.4,89.1,25.4,32.9]
[null,null,null,null,null,null,null,null,null,null,"Annual",{"$f":"AVERAGE(L22:L33)","v":25.574999999999999},{"$f":"MAX(M22:M33)","v":128.19999999999999},{"$f":"AVERAGE(N22:N33)","v":25.641666666666666},{"$f":"MAX(O22:O33)","v":43.7}]
[]
[null,null,null,null,null,null,null,null,null,"20xx","mg/Nm3","Monthly 1/2 hourly mean","Monthly 1/2 hourly maximum","Monthly daily mean","Monthly daily maximum"]
[null,null,null,null,null,null,null,null,null,"A3","Jan"]
[null,null,null,null,null,null,null,null,null,null,"Feb"]
[null,null,null,null,null,null,null,null,null,null,"Mar"]
[null,null,null,null,null,null,null,null,null,null,"Apr"]
[null,null,null,null,null,null,null,null,null,null,"May"]
[null,null,null,null,null,null,null,null,null,null,"Jun"]
[null,null,null,null,null,null,null,null,null,null,"Jul"]
[null,null,null,null,null,null,null,null,null,null,"Aug"]
[null,null,null,null,null,null,null,null,null,null,"Sep"]
[null,null,null,null,null,null,null,null,null,null,"Oct"]
[null,null,null,null,null,null,null,null,null,null,"Nov"]
["Comments :",null,null,null,null,null,null,null,null,null,"Dec"]
[null,null,null,null,null,null,null,null,null,null,"Annual",{"$error":"#DIV/0!"},0,{"$error":"#DIV/0!"},0]
[]
[null,null,null,null,null,null,null,null,null,"20xx","mg/Nm3","Monthly 1/2 hourly mean","Monthly 1/2 hourly maximum","Monthly daily mean","Monthly daily maximum"]
[null,null,null,null,null,null,null,null,null,"A4","Jan"]
[null,null,null,null,null,null,null,null,null,null,"Feb"]
[null,null,null,null,null,null,null,null,null,null,"Mar"]
[null,null,null,null,null,null,null,null,null,null,"Apr"]
[null,null,null,null,null,null,null,null,null,null,"May"]
[null,null,null,null,null,null,null,null,null,null,"Jun"]
[null,null,null,null,null,null,null,null,null,null,"Jul"]
[null,null,null,null,null,null,null,null,null,null,"Aug"]
[null,null,null,null,null,null,null,null,null,null,"Sep"]
[null,null,null,null,null,null,null,null,null,null,"Oct"]
[null,null,null,null,null,null,null,null,null,null,"Nov"]
[null,null,null,null,null,null,null,null,null,null,"Dec"]
[null,null,null,null,null,null,null,null,null,null,"Annual",{"$error":"#DIV/0!"},0,{"$error":"#DIV/0!"},0]
[]
[null,null,null,null,null,null,null,null,null,"20xx","mg/Nm3","Monthly 1/2 hourly mean","Monthly 1/2 hourly maximum","Monthly daily mean","Monthly daily maximum"]
[null,null,null,null,null,null,null,null,null,"A5","Jan"]
[null,null,null,null,null,null,null,null,null,null,"Feb"]
[null,null,null,null,null,null,null,null,null,null,"Mar"]
[null,null,null,null,null,null,null,null,null,null,"Apr"]
[null,null,null,null,null,null,null,null,null,null,"May"]
[null,null,null,null,null,null,null,null,null,null,"Jun"]
[null,null,null,null,null,null,null,null,null,null,"Jul"]
[null,null,null,null,null,null,null,null,null,null,"Aug"]
[null,null,null,null,null,null,null,null,null,null,"Sep"]
[null,null,null,null,null,null,null,null,null,null,"Oct"]
[null,null,null,null,null,null,null,null,null,null,"Nov"]
[null,null,null,null,null,null,null,null,null,null,"Dec"]
[null,null,null,null,null,null,null,null,null,null,"Annual",{"$error":"#DIV/0!"},0,{"$error":"#DIV/0!"},0]

{"sheet":"NOx","index":17,"n_rows":79,"n_cols":17,"rows_kept":79,"cut":false,"hidden":false,"merged":[[3,16,7,18],[9,16,11,18],[12,16,15,18],[66,9,78,9],[4,1,4,3],[4,4,4,6],[4,9,4,14],[6,9,18,9],[21,9,33,9],[36,9,48,9],[47,0,47,6],[48,0,51,6],[51,9,63,9]]}
["Annual Performance Report 2022",null,null,null,"LondonEnergy Ltd"]
[]
["Monitoring of Oxides of Nitrogen emissions",null,null,"Whole Installation",null,null,"See  Notes in Cell Q3",null,null,"Monitoring of Oxides of Nitrogen emissions",null,null,null,"Per Combustion Line",null,null,"Notes:"]
[null,null,null,null,null,null,null,null,null,null,null,null,null,null,null,null,"User to add logic to complete Whole installation, Table A5:G18. From the data in Per Combustion Line, Table J6:O79, subject to No. of lines installed"]
["mg/Nm3","1/2 Hourly Reference Periods",null,null,"Daily Reference Periods"]
[2022,"1/2 hourly NOx ELV","Monthly 1/2 hourly mean","Highest 1/2 hourly maximum","Daily NOx ELV","Monthly daily mean","Highest daily maximum",null,null,2022,"mg/Nm3","Monthly 1/2 hourly mean","Monthly 1/2 hourly maximum","Monthly daily mean","Monthly daily maximum"]
["Jan",400,{"$f":"AVERAGE(L7,L22)","v":157.19999999999999},{"$f":"MAX(M7,M22)","v":221.8},200,{"$f":"AVERAGE(N7,N22)","v":157.19999999999999},{"$f":"MAX(O7,O22)","v":187.2},null,null,"A1","Jan",147.6,210,147.6,170.4]
["Feb",400,{"$f":"AVERAGE(L8,L23)","v":160.44999999999999},{"$f":"MAX(M8,M23)","v":249},200,{"$f":"AVERAGE(N8,N23)","v":160.44999999999999},{"$f":"MAX(O8,O23)","v":184.8},null,null,null,"Feb",155.19999999999999,236.5,155.19999999999999,184.8]
["Mar",400,{"$f":"AVERAGE(L9,L24)","v":158.05000000000001},268.2,200,{"$f":"AVERAGE(N9,N24)","v":158.05000000000001},186,null,null,null,"Mar",144.9,268.2,144.9,168.5,null,"Whole Installation table A5:G18:"]
["Apr",400,{"$f":"AVERAGE(L10,L25)","v":155.4},243.6,200,{"$f":"AVERAGE(N10,N25)","v":155.4},185.3,null,null,null,"Apr",145.30000000000001,243.6,145.30000000000001,181.9,null,"Mean: for 1/2 hourly and daily periods calculate mean of values across all operational combustion lines for the month"]
["May",400,{"$f":"AVERAGE(L11,L26)","v":167.75},309.8,200,{"$f":"AVERAGE(N11,N26)","v":167.75},195.4,null,null,null,"May",167.6,309.8,167.6,190.3]
["Jun",400,{"$f":"AVERAGE(L12,L27)","v":168.05},303.60000000000002,200,{"$f":"AVERAGE(N12,N27)","v":168.05},196.8,null,null,null,"Jun",157.69999999999999,295.10000000000002,157.69999999999999,193.6]
["Jul",400,{"$f":"AVERAGE(L13,L28)","v":175.25},285.39999999999998,200,{"$f":"AVERAGE(N13,N28)","v":175.25},198,null,null,null,"Jul",173.3,285.39999999999998,173.3,198,null,"Maximum: for 1/2 hourly and daily periods use the highest value across all operational combustion lines for the month"]
["Aug",400,{"$f":"AVERAGE(L14,L29)","v":168.39999999999998},329.2,200,{"$f":"AVERAGE(N14,N29)","v":168.39999999999998},194,null,null,null,"Aug",160.19999999999999,329.2,160.19999999999999,190]
["Sep",400,{"$f":"AVERAGE(L15,L30)","v":159.80000000000001},256.2,200,{"$f":"AVERAGE(N15,N30)","v":159.80000000000001},191.1,null,null,null,"Sep",148.9,209.4,148.9,172]
["Oct",400,{"$f":"AVERAGE(L16,L31)","v":165.75},260,200,{"$f":"AVERAGE(N16,N31)","v":165.75},190.5,null,null,null,"Oct",158.1,221.7,158.1,186]
["Nov",400,{"$f":"AVERAGE(L17,L32)","v":157.5},221,200,{"$f":"AVERAGE(N17,N32)","v":157.5},189,null,null,null,"Nov",149,221,149,179.6]
["Dec",400,{"$f":"AVERAGE(L18,L33)","v":159.80000000000001},221.9,200,{"$f":"AVERAGE(N18,N33)","v":159.80000000000001},187.8,null,null,null,"Dec",147.6,203.7,147.6,173.7]
[null,null,null,null,null,null,null,null,null,null,"Annual",{"$f":"AVERAGE(L7:L18)","v":154.61666666666665},{"$f":"MAX(M7:M18)","v":329.2},{"$f":"AVERAGE(N7:N18)","v":154.61666666666665},{"$f":"MAX(O7:O18)","v":198}]
[]
[null,null,null,null,null,null,null,null,null,2022,"mg/Nm3","Monthly 1/2 hourly mean","Monthly 1/2 hourly maximum","Monthly daily mean","Monthly daily maximum"]
[null,null,null,null,null,null,null,null,null,"A2","Jan",166.8,221.8,166.8,187.2]
[null,null,null,null,null,null,null,null,null,null,"Feb",165.7,249,165.7,183.5]
[null,null,null,null,null,null,null,null,null,null,"Mar",171.2,230.1,171.2,186]
[null,null,null,null,null,null,null,null,null,null,"Apr",165.5,233.5,165.5,185.3]
[null,null,null,null,null,null,null,null,null,null,"May",167.9,276.39999999999998,167.9,195.4]
[null,null,null,null,null,null,null,null,null,null,"Jun",178.4,303.60000000000002,178.4,196.8]
[null,null,null,null,null,null,null,null,null,null,"Jul",177.2,281.60000000000002,177.2,196.2]
[null,null,null,null,null,null,null,null,null,null,"Aug",176.6,246,176.6,194]
[null,null,null,null,null,null,null,null,null,null,"Sep",170.7,256.2,170.7,191.1]
[null,null,null,null,null,null,null,null,null,null,"Oct",173.4,260,173.4,190.5]
[null,null,null,null,null,null,null,null,null,null,"Nov",166,220.8,166,189]
[null,null,null,null,null,null,null,null,null,null,"Dec",172,221.9,172,187.8]
[null,null,null,null,null,null,null,null,null,null,"Annual",{"$f":"AVERAGE(L22:L33)","v":170.95000000000002},{"$f":"MAX(M22:M33)","v":303.60000000000002},{"$f":"AVERAGE(N22:N33)","v":170.95000000000002},{"$f":"MAX(O22:O33)","v":196.8}]
[]
[null,null,null,null,null,null,null,null,null,"20xx","mg/Nm3","Monthly 1/2 hourly mean","Monthly 1/2 hourly maximum","Monthly daily mean","Monthly daily maximum"]
[null,null,null,null,null,null,null,null,null,"A3","Jan"]
[null,null,null,null,null,null,null,null,null,null,"Feb"]
[null,null,null,null,null,null,null,null,null,null,"Mar"]
[null,null,null,null,null,null,null,null,null,null,"Apr"]
[null,null,null,null,null,null,null,null,null,null,"May"]
[null,null,null,null,null,null,null,null,null,null,"Jun"]
[null,null,null,null,null,null,null,null,null,null,"Jul"]
[null,null,null,null,null,null,null,null,null,null,"Aug"]
[null,null,null,null,null,null,null,null,null,null,"Sep"]
[null,null,null,null,null,null,null,null,null,null,"Oct"]
[null,null,null,null,null,null,null,null,null,null,"Nov"]
["Comments :",null,null,null,null,null,null,null,null,null,"Dec"]
[null,null,null,null,null,null,null,null,null,null,"Annual",{"$error":"#DIV/0!"},0,{"$error":"#DIV/0!"},0]
[]
[null,null,null,null,null,null,null,null,null,"20xx","mg/Nm3","Monthly 1/2 hourly mean","Monthly 1/2 hourly maximum","Monthly daily mean","Monthly daily maximum"]
[null,null,null,null,null,null,null,null,null,"A4","Jan"]
[null,null,null,null,null,null,null,null,null,null,"Feb"]
[null,null,null,null,null,null,null,null,null,null,"Mar"]
[null,null,null,null,null,null,null,null,null,null,"Apr"]
[null,null,null,null,null,null,null,null,null,null,"May"]
[null,null,null,null,null,null,null,null,null,null,"Jun"]
[null,null,null,null,null,null,null,null,null,null,"Jul"]
[null,null,null,null,null,null,null,null,null,null,"Aug"]
[null,null,null,null,null,null,null,null,null,null,"Sep"]
[null,null,null,null,null,null,null,null,null,null,"Oct"]
[null,null,null,null,null,null,null,null,null,null,"Nov"]
[null,null,null,null,null,null,null,null,null,null,"Dec"]
[null,null,null,null,null,null,null,null,null,null,"Annual",{"$error":"#DIV/0!"},0,{"$error":"#DIV/0!"},0]
[]
[null,null,null,null,null,null,null,null,null,"20xx","mg/Nm3","Monthly 1/2 hourly mean","Monthly 1/2 hourly maximum","Monthly daily mean","Monthly daily maximum"]
[null,null,null,null,null,null,null,null,null,"A5","Jan"]
[null,null,null,null,null,null,null,null,null,null,"Feb"]
[null,null,null,null,null,null,null,null,null,null,"Mar"]
[null,null,null,null,null,null,null,null,null,null,"Apr"]
[null,null,null,null,null,null,null,null,null,null,"May"]
[null,null,null,null,null,null,null,null,null,null,"Jun"]
[null,null,null,null,null,null,null,null,null,null,"Jul"]
[null,null,null,null,null,null,null,null,null,null,"Aug"]
[null,null,null,null,null,null,null,null,null,null,"Sep"]
[null,null,null,null,null,null,null,null,null,null,"Oct"]
[null,null,null,null,null,null,null,null,null,null,"Nov"]
[null,null,null,null,null,null,null,null,null,null,"Dec"]
[null,null,null,null,null,null,null,null,null,null,"Annual",{"$error":"#DIV/0!"},0,{"$error":"#DIV/0!"},0]

{"sheet":"TOC","index":18,"n_rows":79,"n_cols":17,"rows_kept":79,"cut":false,"hidden":false,"merged":[[3,16,7,18],[9,16,11,18],[12,16,15,18],[66,9,78,9],[4,1,4,3],[4,4,4,6],[4,9,4,14],[6,9,18,9],[21,9,33,9],[36,9,48,9],[47,0,47,6],[48,0,51,6],[51,9,63,9]]}
["Annual Performance Report 2022",null,null,null,"LondonEnergy Ltd"]
[]
["Monitoring of Total organic carbon emissions",null,null,"Whole Installation",null,null,"See  Notes in Cell Q3",null,null,"Monitoring of Total organic carbon emissions",null,null,null,"Per Combustion Line",null,null,"Notes:"]
[null,null,null,null,null,null,null,null,null,null,null,null,null,null,null,null,"User to add logic to complete Whole installation, Table A5:G18. From the data in Per Combustion Line, Table J6:O79, subject to No. of lines installed"]
["mg/Nm3","1/2 Hourly Reference Periods",null,null,"Daily Reference Periods"]
[2022,"1/2 hourly TOC ELV","Monthly 1/2 hourly mean","Highest 1/2 hourly maximum","Daily TOC ELV","Monthly daily mean","Highest daily maximum",null,null,2022,"mg/Nm3","Monthly 1/2 hourly mean","Monthly 1/2 hourly maximum","Monthly daily mean","Monthly daily maximum"]
["Jan",20,{"$f":"AVERAGE(L7,L22)","v":0.85},{"$f":"MAX(M7,M22)","v":17.7},10,{"$f":"AVERAGE(N7,N22)","v":0.85},{"$f":"MAX(O7,O22)","v":3},null,null,"A1","Jan",0.7,13.9,0.7,1.1000000000000001]
["Feb",20,{"$f":"AVERAGE(L8,L23)","v":0.75},{"$f":"MAX(M8,M23)","v":41},10,{"$f":"AVERAGE(N8,N23)","v":0.75},{"$f":"MAX(O8,O23)","v":1.6},null,null,null,"Feb",0.6,17.5,0.6,0.9]
["Mar",20,{"$f":"AVERAGE(L9,L24)","v":0.85},23.6,10,{"$f":"AVERAGE(N9,N24)","v":0.85},3.5,null,null,null,"Mar",0.7,15,0.7,1.7,null,"Whole Installation table A5:G18:"]
["Apr",20,{"$f":"AVERAGE(L10,L25)","v":1.25},95.8,10,{"$f":"AVERAGE(N10,N25)","v":1.25},2.7,null,null,null,"Apr",1.1000000000000001,60.6,1.1000000000000001,2.7,null,"Mean: for 1/2 hourly and daily periods calculate mean of values across all operational combustion lines for the month"]
["May",20,{"$f":"AVERAGE(L11,L26)","v":1.1000000000000001},91.3,10,{"$f":"AVERAGE(N11,N26)","v":1.1000000000000001},7.4,null,null,null,"May",1.1000000000000001,32.4,1.1000000000000001,7.4]
["Jun",20,{"$f":"AVERAGE(L12,L27)","v":0.9},38.1,10,{"$f":"AVERAGE(N12,N27)","v":0.9},2.4,null,null,null,"Jun",0.8,27.8,0.8,2.4]
["Jul",20,{"$f":"AVERAGE(L13,L28)","v":0.7},34.5,10,{"$f":"AVERAGE(N13,N28)","v":0.7},1.7,null,null,null,"Jul",0.5,34.5,0.5,1.3,null,"Maximum: for 1/2 hourly and daily periods use the highest value across all operational combustion lines for the month"]
["Aug",20,{"$f":"AVERAGE(L14,L29)","v":2},318.8,10,{"$f":"AVERAGE(N14,N29)","v":2},47.8,null,null,null,"Aug",3,318.8,3,47.8]
["Sep",20,{"$f":"AVERAGE(L15,L30)","v":0.95000000000000007},36.1,10,{"$f":"AVERAGE(N15,N30)","v":0.95000000000000007},2.1,null,null,null,"Sep",0.8,36.1,0.8,1.5]
["Oct",20,{"$f":"AVERAGE(L16,L31)","v":0.95},31.6,10,{"$f":"AVERAGE(N16,N31)","v":0.95},3.5,null,null,null,"Oct",0.7,16.7,0.7,1.1000000000000001]
["Nov",20,{"$f":"AVERAGE(L17,L32)","v":0.7},51.8,10,{"$f":"AVERAGE(N17,N32)","v":0.7},1.7,null,null,null,"Nov",0.7,51.8,0.7,1.7]
["Dec",20,{"$f":"AVERAGE(L18,L33)","v":0.95},30.9,10,{"$f":"AVERAGE(N18,N33)","v":0.95},2.1,null,null,null,"Dec",0.9,14,0.9,2.1]
[null,null,null,null,null,null,null,null,null,null,"Annual",{"$f":"AVERAGE(L7:L18)","v":0.96666666666666667},{"$f":"MAX(M7:M18)","v":318.8},{"$f":"AVERAGE(N7:N18)","v":0.96666666666666667},{"$f":"MAX(O7:O18)","v":47.8}]
[]
[null,null,null,null,null,null,null,null,null,2022,"mg/Nm3","Monthly 1/2 hourly mean","Monthly 1/2 hourly maximum","Monthly daily mean","Monthly daily maximum"]
[null,null,null,null,null,null,null,null,null,"A2","Jan",1,17.7,1,3]
[null,null,null,null,null,null,null,null,null,null,"Feb",0.9,41,0.9,1.6]
[null,null,null,null,null,null,null,null,null,null,"Mar",1,23.6,1,3.5]
[null,null,null,null,null,null,null,null,null,null,"Apr",1.4,95.8,1.4,2.5]
[null,null,null,null,null,null,null,null,null,null,"May",1.1000000000000001,91.3,1.1000000000000001,2.9]
[null,null,null,null,null,null,null,null,null,null,"Jun",1,38.1,1,2]
[null,null,null,null,null,null,null,null,null,null,"Jul",0.9,22.6,0.9,1.7]
[null,null,null,null,null,null,null,null,null,null,"Aug",1,33.6,1,1.7]
[null,null,null,null,null,null,null,null,null,null,"Sep",1.1000000000000001,14.4,1.1000000000000001,2.1]
[null,null,null,null,null,null,null,null,null,null,"Oct",1.2,31.6,1.2,3.5]
[null,null,null,null,null,null,null,null,null,null,"Nov",0.7,10.6,0.7,1.2]
[null,null,null,null,null,null,null,null,null,null,"Dec",1,30.9,1,1.9]
[null,null,null,null,null,null,null,null,null,null,"Annual",{"$f":"AVERAGE(L22:L33)","v":1.0249999999999999},{"$f":"MAX(M22:M33)","v":95.8},{"$f":"AVERAGE(N22:N33)","v":1.0249999999999999},{"$f":"MAX(O22:O33)","v":3.5}]
[]
[null,null,null,null,null,null,null,null,null,"20xx","mg/Nm3","Monthly 1/2 hourly mean","Monthly 1/2 hourly maximum","Monthly daily mean","Monthly daily maximum"]
[null,null,null,null,null,null,null,null,null,"A3","Jan"]
[null,null,null,null,null,null,null,null,null,null,"Feb"]
[null,null,null,null,null,null,null,null,null,null,"Mar"]
[null,null,null,null,null,null,null,null,null,null,"Apr"]
[null,null,null,null,null,null,null,null,null,null,"May"]
[null,null,null,null,null,null,null,null,null,null,"Jun"]
[null,null,null,null,null,null,null,null,null,null,"Jul"]
[null,null,null,null,null,null,null,null,null,null,"Aug"]
[null,null,null,null,null,null,null,null,null,null,"Sep"]
[null,null,null,null,null,null,null,null,null,null,"Oct"]
[null,null,null,null,null,null,null,null,null,null,"Nov"]
["Comments :",null,null,null,null,null,null,null,null,null,"Dec"]
[null,null,null,null,null,null,null,null,null,null,"Annual",{"$error":"#DIV/0!"},0,{"$error":"#DIV/0!"},0]
[]
[null,null,null,null,null,null,null,null,null,"20xx","mg/Nm3","Monthly 1/2 hourly mean","Monthly 1/2 hourly maximum","Monthly daily mean","Monthly daily maximum"]
[null,null,null,null,null,null,null,null,null,"A4","Jan"]
[null,null,null,null,null,null,null,null,null,null,"Feb"]
[null,null,null,null,null,null,null,null,null,null,"Mar"]
[null,null,null,null,null,null,null,null,null,null,"Apr"]
[null,null,null,null,null,null,null,null,null,null,"May"]
[null,null,null,null,null,null,null,null,null,null,"Jun"]
[null,null,null,null,null,null,null,null,null,null,"Jul"]
[null,null,null,null,null,null,null,null,null,null,"Aug"]
[null,null,null,null,null,null,null,null,null,null,"Sep"]
[null,null,null,null,null,null,null,null,null,null,"Oct"]
[null,null,null,null,null,null,null,null,null,null,"Nov"]
[null,null,null,null,null,null,null,null,null,null,"Dec"]
[null,null,null,null,null,null,null,null,null,null,"Annual",{"$error":"#DIV/0!"},0,{"$error":"#DIV/0!"},0]
[]
[null,null,null,null,null,null,null,null,null,"20xx","mg/Nm3","Monthly 1/2 hourly mean","Monthly 1/2 hourly maximum","Monthly daily mean","Monthly daily maximum"]
[null,null,null,null,null,null,null,null,null,"A5","Jan"]
[null,null,null,null,null,null,null,null,null,null,"Feb"]
[null,null,null,null,null,null,null,null,null,null,"Mar"]
[null,null,null,null,null,null,null,null,null,null,"Apr"]
[null,null,null,null,null,null,null,null,null,null,"May"]
[null,null,null,null,null,null,null,null,null,null,"Jun"]
[null,null,null,null,null,null,null,null,null,null,"Jul"]
[null,null,null,null,null,null,null,null,null,null,"Aug"]
[null,null,null,null,null,null,null,null,null,null,"Sep"]
[null,null,null,null,null,null,null,null,null,null,"Oct"]
[null,null,null,null,null,null,null,null,null,null,"Nov"]
[null,null,null,null,null,null,null,null,null,null,"Dec"]
[null,null,null,null,null,null,null,null,null,null,"Annual",{"$error":"#DIV/0!"},0,{"$error":"#DIV/0!"},0]

{"sheet":"Particulates","index":19,"n_rows":79,"n_cols":17,"rows_kept":79,"cut":false,"hidden":false,"merged":[[3,16,7,18],[9,16,11,18],[12,16,15,18],[66,9,78,9],[4,1,4,3],[4,4,4,6],[4,9,4,14],[6,9,18,9],[21,9,33,9],[36,9,48,9],[47,0,47,6],[48,0,51,6],[51,9,63,9]]}
["Annual Performance Report 2022",null,null,null,"LondonEnergy Ltd"]
[]
["Monitoring of Particulate matter emissions",null,null,"Whole Installation",null,null,"See  Notes in Cell Q3",null,null,"Monitoring of Particulate matter emissions",null,null,null,"Per Combustion Line",null,null,"Notes:"]
[null,null,null,null,null,null,null,null,null,null,null,null,null,null,null,null,"User to add logic to complete Whole installation, Table A5:G18. From the data in Per Combustion Line, Table J6:O79, subject to No. of lines installed"]
["mg/Nm3","1/2 Hourly Reference Periods",null,null,"Daily Reference Periods"]
[2022,"1/2 hourly PM ELV","Monthly 1/2 hourly mean","Highest 1/2 hourly maximum","Daily PM ELV","Monthly daily mean","Highest daily maximum",null,null,2022,"mg/Nm3","Monthly 1/2 hourly mean","Monthly 1/2 hourly maximum","Monthly daily mean","Monthly daily maximum"]
["Jan",30,{"$f":"AVERAGE(L7,L22)","v":2.25},{"$f":"AVERAGE(M7,M22)","v":12.2},10,{"$f":"AVERAGE(N7,N22)","v":2.25},{"$f":"AVERAGE(O7,O22)","v":4.1500000000000004},null,null,"A1","Jan",2.2999999999999998,9.1,2.2999999999999998,3.8]
["Feb",30,{"$f":"AVERAGE(L8,L23)","v":2.7},30.2,10,{"$f":"AVERAGE(N8,N23)","v":2.7},7.45,null,null,null,"Feb",3.1,48.4,3.1,11]
["Mar",30,{"$f":"AVERAGE(L9,L24)","v":1.2999999999999998},18.100000000000001,10,{"$f":"AVERAGE(N9,N24)","v":1.2999999999999998},4.1500000000000004,null,null,null,"Mar",1.4,20.100000000000001,1.4,5.0999999999999996,null,"Whole Installation table A5:G18:"]
["Apr",30,{"$f":"AVERAGE(L10,L25)","v":1.05},16.25,10,{"$f":"AVERAGE(N10,N25)","v":1.05},2.4,null,null,null,"Apr",1.3,28.8,1.3,3.9,null,"Mean: for 1/2 hourly and daily periods calculate mean of values across all operational combustion lines for the month"]
["May",30,{"$f":"AVERAGE(L11,L26)","v":1.1499999999999999},6.35,10,{"$f":"AVERAGE(N11,N26)","v":1.1499999999999999},1.8,null,null,null,"May",1.5,10.6,1.5,2.6]
["Jun",30,{"$f":"AVERAGE(L12,L27)","v":0.95000000000000007},2.75,10,{"$f":"AVERAGE(N12,N27)","v":0.95000000000000007},1.3,null,null,null,"Jun",1.1000000000000001,3.6,1.1000000000000001,1.6]
["Jul",30,{"$f":"AVERAGE(L13,L28)","v":1.25},4.0999999999999996,10,{"$f":"AVERAGE(N13,N28)","v":1.25},2.25,null,null,null,"Jul",1.6,0.9,1.6,2.6,null,"Maximum: for 1/2 hourly and daily periods use the highest value across all operational combustion lines for the month"]
["Aug",30,{"$f":"AVERAGE(L14,L29)","v":1.6},9.1499999999999986,10,{"$f":"AVERAGE(N14,N29)","v":1.6},3.4,null,null,null,"Aug",1.6,8.6999999999999993,1.6,3.3]
["Sep",30,{"$f":"AVERAGE(L15,L30)","v":1.6},44.050000000000004,10,{"$f":"AVERAGE(N15,N30)","v":1.6},3.4,null,null,null,"Sep",1.3,2.4,1.3,1.7]
["Oct",30,{"$f":"AVERAGE(L16,L31)","v":1.2000000000000002},3.05,10,{"$f":"AVERAGE(N16,N31)","v":1.2000000000000002},1.75,null,null,null,"Oct",1.3,3.8,1.3,2.1]
["Nov",30,{"$f":"AVERAGE(L17,L32)","v":1.75},4.1500000000000004,10,{"$f":"AVERAGE(N17,N32)","v":1.75},2.35,null,null,null,"Nov",1.9,5.5,1.9,2.6]
["Dec",30,{"$f":"AVERAGE(L18,L33)","v":1.85},4.05,10,{"$f":"AVERAGE(N18,N33)","v":1.85},2.7,null,null,null,"Dec",1.9,5,1.9,3.2]
[null,null,null,null,null,null,null,null,null,null,"Annual",{"$f":"AVERAGE(L7:L18)","v":1.6916666666666664},{"$f":"MAX(M7:M18)","v":48.4},{"$f":"AVERAGE(N7:N18)","v":1.6916666666666664},{"$f":"MAX(O7:O18)","v":11}]
[]
[null,null,null,null,null,null,null,null,null,2022,"mg/Nm3","Monthly 1/2 hourly mean","Monthly 1/2 hourly maximum","Monthly daily mean","Monthly daily maximum"]
[null,null,null,null,null,null,null,null,null,"A2","Jan",2.2000000000000002,15.3,2.2000000000000002,4.5]
[null,null,null,null,null,null,null,null,null,null,"Feb",2.2999999999999998,12,2.2999999999999998,3.9]
[null,null,null,null,null,null,null,null,null,null,"Mar",1.2,16.100000000000001,1.2,3.2]
[null,null,null,null,null,null,null,null,null,null,"Apr",0.8,3.7,0.8,0.9]
[null,null,null,null,null,null,null,null,null,null,"May",0.8,2.1,0.8,1]
[null,null,null,null,null,null,null,null,null,null,"Jun",0.8,1.9,0.8,1]
[null,null,null,null,null,null,null,null,null,null,"Jul",0.9,7.3,0.9,1.9]
[null,null,null,null,null,null,null,null,null,null,"Aug",1.6,9.6,1.6,3.5]
[null,null,null,null,null,null,null,null,null,null,"Sep",1.9,85.7,1.9,5.0999999999999996]
[null,null,null,null,null,null,null,null,null,null,"Oct",1.1000000000000001,2.2999999999999998,1.1000000000000001,1.4]
[null,null,null,null,null,null,null,null,null,null,"Nov",1.6,2.8,1.6,2.1]
[null,null,null,null,null,null,null,null,null,null,"Dec",1.8,3.1,1.8,2.2000000000000002]
[null,null,null,null,null,null,null,null,null,null,"Annual",{"$f":"AVERAGE(L22:L33)","v":1.4166666666666667},{"$f":"MAX(M22:M33)","v":85.7},{"$f":"AVERAGE(N22:N33)","v":1.4166666666666667},{"$f":"MAX(O22:O33)","v":5.0999999999999996}]
[]
[null,null,null,null,null,null,null,null,null,"20xx","mg/Nm3","Monthly 1/2 hourly mean","Monthly 1/2 hourly maximum","Monthly daily mean","Monthly daily maximum"]
[null,null,null,null,null,null,null,null,null,"A3","Jan"]
[null,null,null,null,null,null,null,null,null,null,"Feb"]
[null,null,null,null,null,null,null,null,null,null,"Mar"]
[null,null,null,null,null,null,null,null,null,null,"Apr"]
[null,null,null,null,null,null,null,null,null,null,"May"]
[null,null,null,null,null,null,null,null,null,null,"Jun"]
[null,null,null,null,null,null,null,null,null,null,"Jul"]
[null,null,null,null,null,null,null,null,null,null,"Aug"]
[null,null,null,null,null,null,null,null,null,null,"Sep"]
[null,null,null,null,null,null,null,null,null,null,"Oct"]
[null,null,null,null,null,null,null,null,null,null,"Nov"]
["Comments :",null,null,null,null,null,null,null,null,null,"Dec"]
[null,null,null,null,null,null,null,null,null,null,"Annual",{"$error":"#DIV/0!"},0,{"$error":"#DIV/0!"},0]
[]
[null,null,null,null,null,null,null,null,null,"20xx","mg/Nm3","Monthly 1/2 hourly mean","Monthly 1/2 hourly maximum","Monthly daily mean","Monthly daily maximum"]
[null,null,null,null,null,null,null,null,null,"A4","Jan"]
[null,null,null,null,null,null,null,null,null,null,"Feb"]
[null,null,null,null,null,null,null,null,null,null,"Mar"]
[null,null,null,null,null,null,null,null,null,null,"Apr"]
[null,null,null,null,null,null,null,null,null,null,"May"]
[null,null,null,null,null,null,null,null,null,null,"Jun"]
[null,null,null,null,null,null,null,null,null,null,"Jul"]
[null,null,null,null,null,null,null,null,null,null,"Aug"]
[null,null,null,null,null,null,null,null,null,null,"Sep"]
[null,null,null,null,null,null,null,null,null,null,"Oct"]
[null,null,null,null,null,null,null,null,null,null,"Nov"]
[null,null,null,null,null,null,null,null,null,null,"Dec"]
[null,null,null,null,null,null,null,null,null,null,"Annual",{"$error":"#DIV/0!"},0,{"$error":"#DIV/0!"},0]
[]
[null,null,null,null,null,null,null,null,null,"20xx","mg/Nm3","Monthly 1/2 hourly mean","Monthly 1/2 hourly maximum","Monthly daily mean","Monthly daily maximum"]
[null,null,null,null,null,null,null,null,null,"A5","Jan"]
[null,null,null,null,null,null,null,null,null,null,"Feb"]
[null,null,null,null,null,null,null,null,null,null,"Mar"]
[null,null,null,null,null,null,null,null,null,null,"Apr"]
[null,null,null,null,null,null,null,null,null,null,"May"]
[null,null,null,null,null,null,null,null,null,null,"Jun"]
[null,null,null,null,null,null,null,null,null,null,"Jul"]
[null,null,null,null,null,null,null,null,null,null,"Aug"]
[null,null,null,null,null,null,null,null,null,null,"Sep"]
[null,null,null,null,null,null,null,null,null,null,"Oct"]
[null,null,null,null,null,null,null,null,null,null,"Nov"]
[null,null,null,null,null,null,null,null,null,null,"Dec"]
[null,null,null,null,null,null,null,null,null,null,"Annual",{"$error":"#DIV/0!"},0,{"$error":"#DIV/0!"},0]

{"sheet":"CO 95% 10 min","index":20,"n_rows":79,"n_cols":19,"rows_kept":79,"cut":false,"hidden":false,"merged":[[3,18,7,20],[9,18,11,20],[12,18,15,20],[66,10,78,10],[4,1,4,4],[4,5,4,7],[4,10,4,16],[6,10,18,10],[21,10,33,10],[36,10,48,10],[47,0,47,7],[48,0,51,7],[51,10,63,10]]}
["Annual Performance Report 2022",null,null,null,"LondonEnergy Ltd"]
[]
["Monitoring of Carbon Monoxide (10-minute avg)",null,null,null,"Whole Installation",null,null,"See  Notes in Cell S3",null,"Monitoring of Carbon Monoxide (10-minute avg)",null,null,null,null,"Per Combustion Line",null,"Notes:",null,"Notes:"]
[null,null,null,null,null,null,null,null,null,null,null,null,null,null,null,null,null,null,"User to add logic to complete Whole installation, Table A5:H18. From the data in Per Combustion Line, Table K6:Q79, subject to No. of lines installed"]
["mg/Nm3","10-minute Reference Periods",null,null,null,"Daily Reference Periods"]
[2022,"95%ile 10-min avg CO ELV","95%ile 10-min avg maximum","Monthly CO 10-min avg mean","10-min avg maximum","Daily CO ELV","Monthly daily mean","Highest daily maximum",null,null,2022,"mg/Nm3","95%ile 10-min avg maximum","Monthly CO 10-min avg mean","10-min avg maximum","Monthly daily mean","Monthly daily maximum"]
["Jan",150,{"$f":"MAX(M7,M22)","v":108.3},{"$f":"AVERAGE(N7,N22)","v":27.9},{"$f":"MAX(O7,O22)","v":372.9},50,{"$f":"AVERAGE(P7,P22)","v":27.9},{"$f":"MAX(Q7,Q22)","v":41.2},null,null,"A1","Jan",102.4,26.8,263.2,26.8,36]
["Feb",150,{"$f":"MAX(M8,M23)","v":132},{"$f":"AVERAGE(N8,N23)","v":28.05},{"$f":"MAX(O8,O23)","v":1068.4000000000001},50,{"$f":"AVERAGE(P8,P23)","v":28.05},{"$f":"MAX(Q8,Q23)","v":47.3},null,null,null,"Feb",128.19999999999999,28.1,1068.4000000000001,28.1,47.3]
["Mar",150,128.69999999999999,{"$f":"AVERAGE(N9,N24)","v":25.7},858.7,50,{"$f":"AVERAGE(P9,P24)","v":25.7},44.2,null,null,null,"Mar",128.69999999999999,27.7,858.7,27.7,44.2,null,"Whole Installation table A5:H18:"]
["Apr",150,503.1,{"$f":"AVERAGE(N10,N25)","v":30.299999999999997},1718.6,50,{"$f":"AVERAGE(P10,P25)","v":30.299999999999997},115.9,null,null,null,"Apr",439.7,34.299999999999997,1718.6,34.299999999999997,115.9,null,"Mean: for 10-min and daily periods use average of all operational combustion lines."]
["May",150,227.7,{"$f":"AVERAGE(N11,N26)","v":26.2},1102.8,50,{"$f":"AVERAGE(P11,P26)","v":26.2},61.4,null,null,null,"May",227.4,26.5,817.1,26.5,59.1]
["Jun",150,163.9,{"$f":"AVERAGE(N12,N27)","v":25.45},1131.5,50,{"$f":"AVERAGE(P12,P27)","v":25.45},49.6,null,null,null,"Jun",163.9,28.7,1131.5,28.7,49.6]
["Jul",150,134.5,{"$f":"AVERAGE(N13,N28)","v":26.799999999999997},852.4,50,{"$f":"AVERAGE(P13,P28)","v":26.799999999999997},44.3,null,null,null,"Jul",134,31.7,666.3,31.7,44.3,null,"Maximum: for 10-min and daily periods use the highest of all operational combustion lines in any month."]
["Aug",150,516.79999999999995,{"$f":"AVERAGE(N14,N29)","v":26.1},1138.0999999999999,50,{"$f":"AVERAGE(P14,P29)","v":26.1},108.2,null,null,null,"Aug",516.79999999999995,32.4,1138.0999999999999,32.4,108.2]
["Sep",150,151.69999999999999,{"$f":"AVERAGE(N15,N30)","v":24.85},1054.2,50,{"$f":"AVERAGE(P15,P30)","v":24.85},49.6,null,null,null,"Sep",151.69999999999999,27.5,1054.2,27.5,49.6]
["Oct",150,130.80000000000001,{"$f":"AVERAGE(N16,N31)","v":26.55},794.9,50,{"$f":"AVERAGE(P16,P31)","v":26.55},43.4,null,null,null,"Oct",89.3,26.8,794.9,26.8,41]
["Nov",150,164.8,{"$f":"AVERAGE(N17,N32)","v":34.200000000000003},1182.2,50,{"$f":"AVERAGE(P17,P32)","v":34.200000000000003},47.7,null,null,null,"Nov",164.8,33.799999999999997,1182.2,33.799999999999997,47.7]
["Dec",150,137,{"$f":"AVERAGE(N18,N33)","v":29.4},453.3,50,{"$f":"AVERAGE(P18,P33)","v":29.4},48,null,null,null,"Dec",122.8,28.8,453.3,28.8,45.8]
[null,null,null,null,null,null,null,null,null,null,null,"Annual",{"$f":"MAX(M7:M18)","v":516.79999999999995},{"$f":"AVERAGE(N7:N18)","v":29.425000000000001},{"$f":"MAX(O7:O18)","v":1718.6},{"$f":"AVERAGE(P7:P18)","v":29.425000000000001},{"$f":"MAX(Q7:Q18)","v":115.9}]
[]
[null,null,null,null,null,null,null,null,null,null,2022,"mg/Nm3","95%ile 10-min avg maximum","Monthly CO 10-min avg mean","10-min avg maximum","Monthly daily mean","Monthly daily maximum"]
[null,null,null,null,null,null,null,null,null,null,"A2","Jan",108.3,29,372.9,29,41.2]
[null,null,null,null,null,null,null,null,null,null,null,"Feb",132,28,335.4,28,43.9]
[null,null,null,null,null,null,null,null,null,null,null,"Mar",120.5,23.7,451.4,23.7,43.5]
[null,null,null,null,null,null,null,null,null,null,null,"Apr",503.1,26.3,1151.7,26.3,43.7]
[null,null,null,null,null,null,null,null,null,null,null,"May",227.7,25.9,1102.8,25.9,61.4]
[null,null,null,null,null,null,null,null,null,null,null,"Jun",109,22.2,897.7,22.2,32.5]
[null,null,null,null,null,null,null,null,null,null,null,"Jul",134.5,21.9,852.4,21.9,41.8]
[null,null,null,null,null,null,null,null,null,null,null,"Aug",143.6,19.8,378.7,19.8,37.5]
[null,null,null,null,null,null,null,null,null,null,null,"Sep",116.9,22.2,379.3,22.2,41.2]
[null,null,null,null,null,null,null,null,null,null,null,"Oct",130.80000000000001,26.3,708.1,26.3,43.4]
[null,null,null,null,null,null,null,null,null,null,null,"Nov",136.19999999999999,34.6,364.2,34.6,47.5]
[null,null,null,null,null,null,null,null,null,null,null,"Dec",137,30,409.9,30,48]
[null,null,null,null,null,null,null,null,null,null,null,"Annual",{"$f":"MAX(M22:M33)","v":503.1},{"$f":"AVERAGE(N22:N33)","v":25.825000000000003},{"$f":"MAX(O21:O33)","v":1151.7},{"$f":"AVERAGE(P22:P33)","v":25.825000000000003},{"$f":"MAX(Q22:Q33)","v":61.4}]
[]
[null,null,null,null,null,null,null,null,null,null,"20xx","mg/Nm3","95%ile 10-min avg maximum","Monthly CO 10-min avg mean","10-min avg maximum","Monthly daily mean","Monthly daily maximum"]
[null,null,null,null,null,null,null,null,null,null,"A3","Jan"]
[null,null,null,null,null,null,null,null,null,null,null,"Feb"]
[null,null,null,null,null,null,null,null,null,null,null,"Mar"]
[null,null,null,null,null,null,null,null,null,null,null,"Apr"]
[null,null,null,null,null,null,null,null,null,null,null,"May"]
[null,null,null,null,null,null,null,null,null,null,null,"Jun"]
[null,null,null,null,null,null,null,null,null,null,null,"Jul"]
[null,null,null,null,null,null,null,null,null,null,null,"Aug"]
[null,null,null,null,null,null,null,null,null,null,null,"Sep"]
[null,null,null,null,null,null,null,null,null,null,null,"Oct"]
[null,null,null,null,null,null,null,null,null,null,null,"Nov"]
["Comments :",null,null,null,null,null,null,null,null,null,null,"Dec"]
["Environment Agency explanatory note: The 10-minute average ELV is based on the “95th percentile”. In this case this means that 95% of the 10 minute averages in the relevant 24-hour period (i.e. 137) must be below 150 mg/Nm3, and 5% (i.e. 7) are allowed to be any value above 150 mg/Nm3. Whilst we expect operators to minimise CO emissions at all times, it is perfectly acceptable for the value of the maximum 10-minute average to be above 150 mg/Nm3, provided the 95th percentile ELV has been met for that period. ",null,null,null,null,null,null,null,null,null,null,"Annual",{"$error":"#DIV/0!"},null,0,{"$error":"#DIV/0!"},0]
[]
[null,null,null,null,null,null,null,null,null,null,"20xx","mg/Nm3","95%ile 10-min avg maximum","Monthly CO 10-min avg mean","10-min avg maximum","Monthly daily mean","Monthly daily maximum"]
[null,null,null,null,null,null,null,null,null,null,"A4","Jan"]
[null,null,null,null,null,null,null,null,null,null,null,"Feb"]
[null,null,null,null,null,null,null,null,null,null,null,"Mar"]
[null,null,null,null,null,null,null,null,null,null,null,"Apr"]
[null,null,null,null,null,null,null,null,null,null,null,"May"]
[null,null,null,null,null,null,null,null,null,null,null,"Jun"]
[null,null,null,null,null,null,null,null,null,null,null,"Jul"]
[null,null,null,null,null,null,null,null,null,null,null,"Aug"]
[null,null,null,null,null,null,null,null,null,null,null,"Sep"]
[null,null,null,null,null,null,null,null,null,null,null,"Oct"]
[null,null,null,null,null,null,null,null,null,null,null,"Nov"]
[null,null,null,null,null,null,null,null,null,null,null,"Dec"]
[null,null,null,null,null,null,null,null,null,null,null,"Annual",{"$error":"#DIV/0!"},null,0,{"$error":"#DIV/0!"},0]
[]
[null,null,null,null,null,null,null,null,null,null,"20xx","mg/Nm3","95%ile 10-min avg maximum","Monthly CO 10-min avg mean","10-min avg maximum","Monthly daily mean","Monthly daily maximum"]
[null,null,null,null,null,null,null,null,null,null,"A5","Jan"]
[null,null,null,null,null,null,null,null,null,null,null,"Feb"]
[null,null,null,null,null,null,null,null,null,null,null,"Mar"]
[null,null,null,null,null,null,null,null,null,null,null,"Apr"]
[null,null,null,null,null,null,null,null,null,null,null,"May"]
[null,null,null,null,null,null,null,null,null,null,null,"Jun"]
[null,null,null,null,null,null,null,null,null,null,null,"Jul"]
[null,null,null,null,null,null,null,null,null,null,null,"Aug"]
[null,null,null,null,null,null,null,null,null,null,null,"Sep"]
[null,null,null,null,null,null,null,null,null,null,null,"Oct"]
[null,null,null,null,null,null,null,null,null,null,null,"Nov"]
[null,null,null,null,null,null,null,null,null,null,null,"Dec"]
[null,null,null,null,null,null,null,null,null,null,null,"Annual",{"$error":"#DIV/0!"},null,0,{"$error":"#DIV/0!"},0]

{"sheet":"NH3","index":21,"n_rows":79,"n_cols":17,"rows_kept":79,"cut":false,"hidden":false,"merged":[[3,16,7,18],[9,16,11,18],[12,16,15,18],[66,9,78,9],[4,1,4,3],[4,4,4,6],[4,9,4,14],[6,9,18,9],[21,9,33,9],[36,9,48,9],[47,0,47,6],[48,0,51,6],[51,9,63,9]]}
["Annual Performance Report 2022",null,null,null,"LondonEnergy Ltd"]
[]
["Monitoring of Ammnonia emissions ",null,null,"Whole Installation",null,null,"See  Notes in Cell Q3",null,null,"Monitoring of Ammnonia emissions ",null,null,null,"Per Combustion Line",null,null,"Notes:"]
[null,null,null,null,null,null,null,null,null,null,null,null,null,null,null,null,"User to add logic to complete Whole installation, Table A5:G18. From the data in Per Combustion Line, Table J6:O79, subject to No. of lines installed"]
["mg/Nm3","1/2 Hourly Reference Periods",null,null,"Daily Reference Periods"]
[2022,"1/2 hourly NH3 ELV","Monthly 1/2 hourly mean","Highest 1/2 hourly maximum","Daily NH3 ELV","Monthly daily mean","Highest daily maximum",null,null,2022,"mg/Nm3","Monthly 1/2 hourly mean","Monthly 1/2 hourly maximum","Monthly daily mean","Monthly daily maximum"]
["Jan",0,{"$f":"AVERAGE(L7,L22)","v":4.9499999999999993},{"$f":"MAX(M7,M22)","v":26.3},0,{"$f":"AVERAGE(N7,N22)","v":4.9499999999999993},{"$f":"MAX(O7,O22)","v":9.6},null,null,"A1","Jan",3.3,26.3,3.3,6]
["Feb",0,{"$f":"AVERAGE(L8,L23)","v":5.8},{"$f":"MAX(M8,M23)","v":75.5},0,{"$f":"AVERAGE(N8,N23)","v":5.8},{"$f":"MAX(O8,O23)","v":13},null,null,null,"Feb",4.5,66.2,4.5,8.8000000000000007]
["Mar",0,{"$f":"AVERAGE(L9,L24)","v":4.45},23.1,0,{"$f":"AVERAGE(N9,N24)","v":4.45},8.6,null,null,null,"Mar",3.2,13,3.2,4.5999999999999996,null,"Whole Installation table A5:G18:"]
["Apr",0,{"$f":"AVERAGE(L10,L25)","v":6.2},63.5,0,{"$f":"AVERAGE(N10,N25)","v":6.2},15.4,null,null,null,"Apr",5.4,59,5.4,15.4,null,"Mean: for 1/2 hourly and daily periods calculate mean of values across all operational combustion lines for the month"]
["May",0,{"$f":"AVERAGE(L11,L26)","v":7.65},92.8,0,{"$f":"AVERAGE(N11,N26)","v":7.65},20.6,null,null,null,"May",6.4,72.900000000000006,6.4,18.100000000000001]
["Jun",0,{"$f":"AVERAGE(L12,L27)","v":6.15},29.7,0,{"$f":"AVERAGE(N12,N27)","v":6.15},12.9,null,null,null,"Jun",4.8,22.5,4.8,9.8000000000000007]
["Jul",0,{"$f":"AVERAGE(L13,L28)","v":11.149999999999999},93.5,0,{"$f":"AVERAGE(N13,N28)","v":11.149999999999999},33.299999999999997,null,null,null,"Jul",10.199999999999999,67.7,10.199999999999999,21.5,null,"Maximum: for 1/2 hourly and daily periods use the highest value across all operational combustion lines for the month"]
["Aug",0,{"$f":"AVERAGE(L14,L29)","v":7.4499999999999993},95.2,0,{"$f":"AVERAGE(N14,N29)","v":7.4499999999999993},16.8,null,null,null,"Aug",7.6,67.400000000000006,7.6,16.8]
["Sep",0,{"$f":"AVERAGE(L15,L30)","v":6.05},48.2,0,{"$f":"AVERAGE(N15,N30)","v":6.05},13.5,null,null,null,"Sep",3.9,15.7,3.9,7]
["Oct",0,{"$f":"AVERAGE(L16,L31)","v":6.8000000000000007},36.6,0,{"$f":"AVERAGE(N16,N31)","v":6.8000000000000007},16.7,null,null,null,"Oct",4.7,28,4.7,11]
["Nov",0,{"$f":"AVERAGE(L17,L32)","v":8.1},117.7,0,{"$f":"AVERAGE(N17,N32)","v":8.1},23.4,null,null,null,"Nov",7.5,42.2,7.5,13.6]
["Dec",0,{"$f":"AVERAGE(L18,L33)","v":5.3},38.4,0,{"$f":"AVERAGE(N18,N33)","v":5.3},10.9,null,null,null,"Dec",4.0999999999999996,20.5,4.0999999999999996,10.9]
[null,null,null,null,null,null,null,null,null,null,"Annual",{"$f":"AVERAGE(L7:L18)","v":5.4666666666666659},{"$f":"MAX(M7:M18)","v":72.900000000000006},{"$f":"AVERAGE(N7:N18)","v":5.4666666666666659},{"$f":"MAX(O7:O18)","v":21.5}]
[]
[null,null,null,null,null,null,null,null,null,2022,"mg/Nm3","Monthly 1/2 hourly mean","Monthly 1/2 hourly maximum","Monthly daily mean","Monthly daily maximum"]
[null,null,null,null,null,null,null,null,null,"A2","Jan",6.6,22.4,6.6,9.6]
[null,null,null,null,null,null,null,null,null,null,"Feb",7.1,75.5,7.1,13]
[null,null,null,null,null,null,null,null,null,null,"Mar",5.7,23.1,5.7,8.6]
[null,null,null,null,null,null,null,null,null,null,"Apr",7,63.5,7,10.4]
[null,null,null,null,null,null,null,null,null,null,"May",8.9,92.8,8.9,20.6]
[null,null,null,null,null,null,null,null,null,null,"Jun",7.5,29.7,7.5,12.9]
[null,null,null,null,null,null,null,null,null,null,"Jul",12.1,93.5,12.1,33.299999999999997]
[null,null,null,null,null,null,null,null,null,null,"Aug",7.3,95.2,7.3,11.6]
[null,null,null,null,null,null,null,null,null,null,"Sep",8.1999999999999993,48.2,8.1999999999999993,13.5]
[null,null,null,null,null,null,null,null,null,null,"Oct",8.9,36.6,8.9,16.7]
[null,null,null,null,null,null,null,null,null,null,"Nov",8.6999999999999993,117.7,8.6999999999999993,23.4]
[null,null,null,null,null,null,null,null,null,null,"Dec",6.5,38.4,6.5,10.6]
[null,null,null,null,null,null,null,null,null,null,"Annual",{"$f":"AVERAGE(L22:L33)","v":7.875},{"$f":"MAX(M22:M33)","v":117.7},{"$f":"AVERAGE(N22:N33)","v":7.875},{"$f":"MAX(O22:O33)","v":33.299999999999997}]
[]
[null,null,null,null,null,null,null,null,null,"20xx","mg/Nm3","Monthly 1/2 hourly mean","Monthly 1/2 hourly maximum","Monthly daily mean","Monthly daily maximum"]
[null,null,null,null,null,null,null,null,null,"A3","Jan"]
[null,null,null,null,null,null,null,null,null,null,"Feb"]
[null,null,null,null,null,null,null,null,null,null,"Mar"]
[null,null,null,null,null,null,null,null,null,null,"Apr"]
[null,null,null,null,null,null,null,null,null,null,"May"]
[null,null,null,null,null,null,null,null,null,null,"Jun"]
[null,null,null,null,null,null,null,null,null,null,"Jul"]
[null,null,null,null,null,null,null,null,null,null,"Aug"]
[null,null,null,null,null,null,null,null,null,null,"Sep"]
[null,null,null,null,null,null,null,null,null,null,"Oct"]
[null,null,null,null,null,null,null,null,null,null,"Nov"]
["Comments :",null,null,null,null,null,null,null,null,null,"Dec"]
["An indicated ELV value of zero in the table above means that no ammonia limit is set in the permit.  ",null,null,null,null,null,null,null,null,null,"Annual",{"$error":"#DIV/0!"},0,{"$error":"#DIV/0!"},0]
[]
[null,null,null,null,null,null,null,null,null,"20xx","mg/Nm3","Monthly 1/2 hourly mean","Monthly 1/2 hourly maximum","Monthly daily mean","Monthly daily maximum"]
[null,null,null,null,null,null,null,null,null,"A4","Jan"]
[null,null,null,null,null,null,null,null,null,null,"Feb"]
[null,null,null,null,null,null,null,null,null,null,"Mar"]
[null,null,null,null,null,null,null,null,null,null,"Apr"]
[null,null,null,null,null,null,null,null,null,null,"May"]
[null,null,null,null,null,null,null,null,null,null,"Jun"]
[null,null,null,null,null,null,null,null,null,null,"Jul"]
[null,null,null,null,null,null,null,null,null,null,"Aug"]
[null,null,null,null,null,null,null,null,null,null,"Sep"]
[null,null,null,null,null,null,null,null,null,null,"Oct"]
[null,null,null,null,null,null,null,null,null,null,"Nov"]
[null,null,null,null,null,null,null,null,null,null,"Dec"]
[null,null,null,null,null,null,null,null,null,null,"Annual",{"$error":"#DIV/0!"},0,{"$error":"#DIV/0!"},0]
[]
[null,null,null,null,null,null,null,null,null,"20xx","mg/Nm3","Monthly 1/2 hourly mean","Monthly 1/2 hourly maximum","Monthly daily mean","Monthly daily maximum"]
[null,null,null,null,null,null,null,null,null,"A5","Jan"]
[null,null,null,null,null,null,null,null,null,null,"Feb"]
[null,null,null,null,null,null,null,null,null,null,"Mar"]
[null,null,null,null,null,null,null,null,null,null,"Apr"]
[null,null,null,null,null,null,null,null,null,null,"May"]
[null,null,null,null,null,null,null,null,null,null,"Jun"]
[null,null,null,null,null,null,null,null,null,null,"Jul"]
[null,null,null,null,null,null,null,null,null,null,"Aug"]
[null,null,null,null,null,null,null,null,null,null,"Sep"]
[null,null,null,null,null,null,null,null,null,null,"Oct"]
[null,null,null,null,null,null,null,null,null,null,"Nov"]
[null,null,null,null,null,null,null,null,null,null,"Dec"]
[null,null,null,null,null,null,null,null,null,null,"Annual",{"$error":"#DIV/0!"},0,{"$error":"#DIV/0!"},0]